Workbook

Sheet раскл3-7
C2: Меню-раскладка к примерному 10-дневному меню
C3: для организации питания детей в дошкольных образовательных учреждениях
C4: от 3-7 лет
A5: День 1 - ый
A6: Прием пищи | C6: Выход блюда | D6: Кол - во | E6: Кол - во | F6: Пищевые вещества (г) | I6: Энергетическая | J6: № рецептуры
A7: Наименование блюд | D7: (в гр ) | E7: (в гр ) | I7: ценность
D8: брутто | E8: нетто | F8: белки | G8: жиры | H8: угл-ды | I8: Ккал
B9: ЗАВТРАК
A10: Каша манная молочная с маслом | C10: 200/3 | F10: 10.00 | G10: 10.00 | H10: 24.50 | I10: 228.00 | J10: ТТК №4
B11: Крупа манная | D11: 20.00 | E11: 20.00
B12: Молоко | D12: 100.00 | E12: 100.00
B13: вода | D13: 76.00 | E13: 76.00
B14: сахар | D14: 3.00 | E14: 3.00
B15: Соль | D15: 1.50 | E15: 1.50
B16: Масло сливочное | D16: 3.00 | E16: 3.00
A17: Чай с сахаром | C17: 180/5 | F17: 0.06 | G17: 0.02 | H17: 4.99 | I17: 20.00 | J17: № 411 Дели2016
B18: Заварка | D18: 0.3 | E18: 0.3
B19: сахар | D19: 5 | E19: 5
B20: Вода | D20: 180 | E20: 180
A21: Бутерброд с маслом сливочным | C21: 25/5 | F21: 1.90 | G21: 4.40 | H21: 13.00 | I21: 99.00 | J21: №1 Дели2010
B22: Батон нарезной | D22: 25.00 | E22: 25.00
B23: Масло сливочное | D23: 5.00 | E23: 5.00
A24: Итого: | C24: 418 | F24: =SUM(F9:F23) -> 11.96 | G24: =SUM(G9:G23) -> 14.42 | H24: =SUM(H9:H23) -> 42.49 | I24: =SUM(I9:I23) -> 347.00
A25: Сок | C25: 125 | D25: 125 | E25: 125 | F25: 0.90 | G25: 0.08 | H25: 21.00 | I25: 84.00 | J25: №418Дели2016
A26: абрикосовый
A27: Итого: | C27: =SUM(C25:C25) -> 125 | F27: =SUM(F25) -> 0.90 | G27: =SUM(G25) -> 0.08 | H27: =SUM(H25) -> 21.00 | I27: =SUM(I25) -> 84.00
C28: 543 | F28: =F24+F27 -> 12.86 | G28: =G24+G27 -> 14.50 | H28: =H24+H27 -> 63.49 | I28: =I24+I27 -> 431.00
B29: ОБЕД
A30: Икра кабачковая | C30: 50 | F30: 0.95 | G30: 3.02 | H30: 7.90 | I30: 63.00 | J30: № 57 Дели 2016
B31: Икра кабачковая | D31: 52.50 | E31: 50.00
A32: Суп вермишелевый с картофелем и курицей | C32: 200/10 | F32: 3.86 | G32: 5.80 | H32: 15.24 | I32: 133.00 | J32: №88 Дели 2016
B33: цыплята | D33: 22.61 | E33: 14.67
B34: Картофель | D34: 100.20 | E34: 60.00
B35: Морковь | D35: 10.64 | E35: 8.00
B36: Лук репчатый | D36: 9.52 | E36: 8.00
B37: Вермишель | D37: 8.00 | E37: 8.00
B38: Масло растительное | D38: 2.40 | E38: 2.40
B39: Соль | D39: 1.00 | E39: 1.00
B40: Вода | D40: 152.00 | E40: 152.00
A41: Тефтели из говядины с соусом томатным | C41: 70/10 | F41: 6.2 | G41: 6.5 | H41: 5 | I41: 103 | J41: ТТК № 1152 от 09.10.2020 и №364 С-Петербург 2008
B42: фарш из говядины | D42: 48 | E42: 48
B43: Хлеб пшеничный 1с | D43: 6 | E43: 6
B44: Вода | D44: 6 | E44: 6
B45: Лук репчатый | D45: 14.28 | E45: 11.99
B46: Крупа манная | D46: 3 | E46: 3
B47: Соль | D47: 0.5 | E47: 0.5
B48: масса полуфабриката | E48: 74
B49: Масло растительное | D49: 2 | E49: 2
B50: соус томатный | E50: 10.0
B51: вода | D51: 9.0 | E51: 9.0
B52: Масло растительное | D52: 0.4 | E52: 0.4
B53: Мука пшеничная | D53: 0.4 | E53: 0.4
B54: морковь | D54: 0.79 | E54: 0.60
B55: Лук репчатый | D55: 0.24 | E55: 0.20
B56: Томат-паста | D56: 1.0 | E56: 1.0
B57: Масло растительное | D57: 0.2 | E57: 0.2
B58: соль | D58: 0.1 | E58: 0.1
B59: сахар | D59: 0.2 | E59: 0.2
A60: Каша гречневая вязкая | C60: 130/3 | F60: 6.20 | G60: 5.80 | H60: 38.00 | I60: 229.00 | J60: №182,Дели 2016
B61: Крупа гречневая | D61: 32.50 | E61: 32.50
B62: Вода | D62: 108.00 | E62: 108.00
B63: Масло сливочное | D63: 3.00 | E63: 3.00
B64: Соль | D64: 0.50 | E64: 0.50
A65: Кисель | C65: 180 | H65: 10.00 | I65: 40.00 | J65: №284Партнер2014
B66: Кисель-концентрат | D66: 21.60 | E66: 21.60
B67: вода | D67: 180.00 | E67: 180.00
B68: Сахар | D68: 5.00 | E68: 5.00
A69: Хлеб сельский | C69: 37.5 | D69: 37.50 | E69: 37.50 | F69: 1.8 | G69: 0.4 | H69: 18 | I69: 82.5
A70: Итого: | C70: 690.5 | F70: =SUM(F29:F69) -> 19.01 | G70: =SUM(G29:G69) -> 21.52 | H70: =SUM(H29:H69) -> 94.14 | I70: =SUM(I29:I69) -> 650.50
B71: ПОЛДНИК
A72: Булочка Домашняя | C72: 50 | F72: 4.90 | G72: 5.00 | H72: 38.00 | I72: 217.00 | J72: №258 Партнер г. Уфа 2014
B73: Мука пшеничная | D73: 34.00 | E73: 34.00
B74: Сахар | D74: 7.00 | E74: 7.00
B75: вода | D75: 14.00 | E75: 14.00
B76: Масло растительное | D76: 7.00 | E76: 7.00
B77: Дрожжи сухие | D77: 0.20 | E77: 0.20
B78: Соль | D78: 0.30 | E78: 0.30
B79: Яйцо | D79: 1.00 | E79: 1.00
B80: Масса полуфабриката | E80: 60.50
B81: Масло растительное | D81: 0.20 | E81: 0.20
A82: Катык | C82: 110 | F82: 3.77 | G82: 2.75 | H82: 5 | I82: 62.1 | J82: №401Дели2010
B83: катык | D83: 114.00 | E83: 110.00
A84: Рагу с курицей | C84: 120/25 | F84: 6.00 | G84: 9.50 | H84: 16.90 | I84: 177.00 | J84: ТТК №63
B85: цыплята | D85: 53.84 | E85: 34.99
B86: Масса тушеного мяса | E86: 25
B87: Картофель | D87: 146.96 | E87: 88.00
B88: Морковь | D88: 14.89 | E88: 11.20
B89: Соль | D89: 0.50 | E89: 0.50
B90: вода | D90: 32.00 | E90: 32.00
B91: Масло растительное | D91: 4.00 | E91: 4.00
B92: Мука пшеничная | D92: 2.00 | E92: 2.00
B93: сахар | D93: 0.38 | E93: 0.38
A94: Напиток из урюка | C94: 180 | F94: 0.6 | G94: 0.1 | H94: 15.0 | I94: 63 | J94: ТТК №68
B95: урюк | D95: 15.30 | E95: 15.00
B96: вода | D96: 180.00 | E96: 180.00
B97: Сахар | D97: 5.00 | E97: 5.00
A98: Хлеб пшеничный 1с | C98: 20 | D98: 20.00 | E98: 20.00 | F98: 1.52 | G98: 0.16 | H98: 9.84 | I98: 47.00
A99: Итого: | C99: 505 | F99: =SUM(F72:F98) -> 16.79 | G99: =SUM(G72:G98) -> 17.47 | H99: 84.74 | I99: 565.60
A100: ВСЕГО: | C100: =C24+C27+C70+C99 -> 1738.5 | F100: =F24+F27+F70+F99 -> 48.66 | G100: =G24+G27+G70+G99 -> 53.49 | H100: =H24+H27+H70+H99 -> 242.37 | I100: =I24+I27+I70+I99 -> 1647.10
A102: День 2- ой
A103: Прием пищи | C103: Выход блюда | D103: Кол - во | E103: Кол - во | F103: Пищевые вещества (г) | I103: Энергетическая | J103: № рецептуры
A104: Наименование блюд | D104: (в гр ) | E104: (в гр ) | I104: ценность
D105: брутто | E105: нетто | F105: белки | G105: жиры | H105: угл-ды | I105: Ккал
B106: ЗАВТРАК
A107: Каша "Дружба" молочная с маслом | C107: 200/3 | F107: 5.20 | G107: 5.80 | H107: 25.20 | I107: 173.80 | J107: ТТК №7
B108: Крупа рисовая | D108: 15.00 | E108: 15.00
B109: Крупа пшенная | D109: 11.00 | E109: 11.00
B110: Молоко | D110: 86.00 | E110: 86.00
B111: Вода | D111: 86.00 | E111: 86.00
B112: Сахар | D112: 1.00 | E112: 1.00
B113: Соль | D113: 1.00 | E113: 1.00
B114: Масло сливочное | D114: 3.00 | E114: 3.00
A115: Какао с молоком | C115: 180 | F115: 2.42 | G115: 2.58 | H115: 13.61 | I115: 87.30 | J115: №272 Парнер г. Уфа 2014
B116: Какао-порошок | D116: 1.50 | E116: 1.50
B117: Сахар | D117: 8.00 | E117: 8.00
B118: Молоко | D118: 90.00 | E118: 90.00
B119: Вода | D119: 100.00 | E119: 100.00
A120: Бутерброд с сыром, маслом | C120: 25/7/3 | F120: 4.00 | G120: 6.00 | H120: 12.83 | I120: 122.00 | J120: №3 Дели2010
B121: Батон нарезной | D121: 25.00 | E121: 25.00
B122: Сыр | D122: 7.14 | E122: 7.00
B123: Масло сливочное | D123: 3.00 | E123: 3.00
A124: Итого: | C124: 418 | F124: =SUM(F106:F122) -> 11.62 | G124: =SUM(G106:G122) -> 14.38 | H124: =SUM(H106:H122) -> 51.64 | I124: =SUM(I106:I122) -> 383.10
A125: Фрукты свежие | C125: 100 | D125: 114 | E125: 100 | F125: 1.20 | G125: 0.34 | H125: 10.50 | I125: 49.00 | J125: № 368 Дели 2010
A126: апельсин
A127: Итого: | C127: 100 | F127: =SUM(F125) -> 1.20 | G127: =SUM(G125) -> 0.34 | H127: =SUM(H125) -> 10.50 | I127: =SUM(I125) -> 49.00
C128: 518 | F128: =F124+F127 -> 12.82 | G128: =G124+G127 -> 14.72 | H128: =H124+H127 -> 62.14 | I128: =I124+I127 -> 432.10
B129: ОБЕД
A130: Салат из свеклы | C130: 50 | F130: 0.60 | G130: 2.50 | H130: 4.20 | I130: 42.00 | J130: №34, Дели2016
B131: Свекла | D131: 64.60 | E131: 47.50
B132: Масло растительное | D132: 2.50 | E132: 2.50
A133: Суп из овощей с курицей, со сметаной | C133: 200/10/6 | F133: 3.50 | G133: 7.80 | H133: 19.70 | I133: 163.00 | J133: №64 "Партнер"2014
B134: цыплята | D134: 22.61 | E134: 14.67
B135: Капуста свежая | D135: 20.00 | E135: 16.00
B136: Картофель | D136: 66.80 | E136: 40.00
B137: Морковь | D137: 10.64 | E137: 8.00
B138: Лук репчатый | D138: 9.52 | E138: 8.00
B139: Масло растительное | D139: 4.00 | E139: 4.00
B140: Соль | D140: 1.00 | E140: 1.00
B141: Бульон или вода | D141: 152.00 | E141: 152.00
B142: Сметана | D142: 6.00 | E142: 6.00
A143: Соус мясной "Смак" | C143: 70 | F143: 10.10 | G143: 6.80 | H143: 17.00 | I143: 170.00 | J143: ТТК № 1523 от 28.07.2021
B144: Фарш из говядины | D144: 28.00 | E144: 28.00
B145: Морковь | D145: 8.69 | E145: 6.53
B146: Лук репчатый | D146: 11.10 | E146: 9.32
B147: Томат-паста | D147: 5.60 | E147: 5.60
B148: Масло растительное | D148: 1.40 | E148: 1.40
B149: Мука пшеничная | D149: 1.25 | E149: 1.25
B150: вода | D150: 42.00 | E150: 42.00
B151: Соль | D151: 0.47 | E151: 0.47
A152: Пюре Картофельное | C152: 130 | F152: 3.70 | G152: 4.44 | H152: 25.00 | I152: 155.00 | J152: №137 Партнер 2014
B153: Картофель | D153: 186.37 | E153: 111.60
B154: Молоко | D154: 20.47 | E154: 19.50
B155: Масло сливочное | D155: 3.00 | E155: 3.00
B156: Соль | D156: 1.00 | E156: 1.00
A157: Компот из свежих яблок | C157: 180 | F157: 0.10 | G157: 0.10 | H157: 11.80 | I157: 49.00 | J157: № 390 Дели 2016
B158: яблоки | D158: 40.8 | E158: 36.0
B159: вода | D159: 155.0 | E159: 155.0
B160: сахар | D160: 5.0 | E160: 5.0
A161: Хлеб сельский | C161: 37.5 | D161: 37.50 | E161: 37.50 | F161: 1.8 | G161: 0.4 | H161: 18 | I161: 82.5
A162: Итого: | C162: 683.5 | F162: =SUM(F130:F161) -> 19.80 | G162: =SUM(G130:G161) -> 22.04 | H162: =SUM(H130:H161) -> 95.70 | I162: 661.50
B163: ПОЛДНИК
A164: Кондитерские изделия | C164: 10 | F164: 3.86 | G164: 3.38 | H164: 32.00 | I164: 168.00
A165: печенье | D165: 10.00 | E165: 10.00
A166: Молоко кипяченое | C166: 110 | F166: 2.50 | G166: 2.75 | H166: 4.00 | I166: 51.00 | J166: №419 Дели2016
B167: молоко | D167: 115.90 | E167: 110.00
A168: Суфле из творога с молоком сгущенным | C168: 150/20 | F168: 9.00 | G168: 12.50 | H168: 24.00 | I168: 245.00 | J168: ТТК №567
B169: Творог | D169: 109.28 | E169: 107.14
B170: крупа манная | D170: 11.40 | E170: 11.40
B171: Яйцо | D171: 7.14 | E171: 7.14
B172: Сахар | D172: 11.40 | E172: 11.40
B173: Молоко | D173: 21.40 | E173: 21.40
B174: Сметана | D174: 14.28 | E174: 14.28
B175: соль | D175: 0.30 | E175: 0.30
B176: Масло растительное | D176: 0.60 | E176: 0.60
B177: молоко сгущенное | D177: 20.00 | E177: 20.00
A178: Чай с сахаром и лимоном | C178: 180/5/5 | F178: 0.12 | G178: 0.01 | H178: 10.20 | I178: 41.00 | J178: №393Дели2010
B179: Заварка | D179: 0.35 | E179: 0.35
B180: Сахар | D180: 5 | E180: 5
B181: лимон | D181: 5.1 | E181: 5
B182: Вода | D182: 180.0 | E182: 180.0
A183: Хлеб пшеничный 1с | C183: 20 | D183: 20.00 | E183: 20.00 | F183: 1.52 | G183: 0.16 | H183: 9.84 | I183: 47.00
A184: Итого: | C184: 500 | F184: =SUM(F163:F183) -> 17.00 | G184: =SUM(G163:G183) -> 18.80 | H184: =SUM(H163:H183) -> 80.04 | I184: =SUM(I163:I183) -> 552.00
A185: ВСЕГО: | C185: =C124+C127+C162+C184 -> 1701.5 | F185: =F124+F127+F162+F184 -> 49.62 | G185: =G124+G127+G162+G184 -> 55.56 | H185: =H124+H127+H162+H184 -> 237.88 | I185: =I124+I127+I162+I184 -> 1645.60
A187: День 3 - ий
A188: Прием пищи | C188: Выход блюда | D188: Кол - во | E188: Кол - во | F188: Пищевые вещества (г) | I188: Энергетическая | J188: № рецептуры
A189: Наименование блюд | D189: (в гр ) | E189: (в гр ) | I189: ценность
D190: брутто | E190: нетто | F190: белки | G190: жиры | H190: угл-ды | I190: Ккал
B191: ЗАВТРАК
A192: Каша Геркулесовая молочная с маслом | C192: 200/3 | F192: 6.70 | G192: 7.50 | H192: 22.00 | I192: 182.30 | J192: ТТК №5
B193: Крупа Геркулесовая | D193: 25.00 | E193: 25.00
B194: Молоко | D194: 100.00 | E194: 100.00
B195: вода | D195: 76.00 | E195: 76.00
B196: Сахар | D196: 1.00 | E196: 1.00
B197: Соль | D197: 1.00 | E197: 1.00
B198: Масло сливочное | D198: 3.00 | E198: 3.00
A199: Чай с молоком,сахаром | C199: 180/5 | F199: 2.60 | G199: 2.30 | H199: 14.30 | I199: 89.00 | J199: № 394 Дели2010
B200: Заварка | D200: 0.3 | E200: 0.3
B201: Сахар | D201: 5 | E201: 5
B202: Молоко | D202: 48 | E202: 48
B203: Вода | D203: 130 | E203: 130
... 699 more rows

Sheet 1-3 лет Послед
A1: "Согласовано" | E1: "Утверждаю"
A2: ________________________ | E2: Заместитель генерального директора по организации питания АО "Департамент продовольствия и социального питания г. Казани"
A3: __________________________ | E3: __________________А.К. Агапова
E4: Апрель 2025г
C5: Примерное 10-дневное меню
C6: для организации питания детей в дошкольных образовательных учреждениях
C7: от 1-3 лет с 7-12 часовым пребыванием
B8: 1 неделя
A9: День 1 - ый
A10: Прием пищи | C10: Выход блюда | D10: Пищевые вещества (г) | G10: Энергетическая | H10: № рецептуры
A11: Наименование блюд | G11: ценность
D12: белки | E12: жиры | F12: угл-ды | G12: Ккал
B13: ЗАВТРАК
A14: Каша манная молочная с маслом | C14: 150/3 | D14: 7.50 | E14: 7.50 | F14: 18.40 | G14: 171.10 | H14: ТТК №4
A15: Чай с сахаром | C15: 160/4 | D15: 0.05 | E15: 0.01 | F15: 4.42 | G15: 18.00 | H15: № 411 Дели2016
A16: Бутерброд с маслом сливочным | C16: 25/5 | D16: 1.9 | E16: 4.4 | F16: 13 | G16: 99 | H16: №1 Дели2010
A17: Итого: | C17: 347 | D17: =SUM(D13:D16) -> 9.45 | E17: =SUM(E13:E16) -> 11.91 | F17: =SUM(F13:F16) -> 35.82 | G17: =SUM(G13:G16) -> 288.10
A18: Сок | C18: 125 | D18: 0.60 | E18: 0.30 | F18: 13.00 | G18: 57.00 | H18: №418Дели2016
A19: персиковый
A20: Итого: | C20: 125 | D20: =SUM(D18) -> 0.60 | E20: =SUM(E18) -> 0.30 | F20: =SUM(F18) -> 13.00 | G20: =SUM(G18) -> 57.00
C21: 472 | D21: =D17+D20 -> 10.05 | E21: =E17+E20 -> 12.21 | F21: =F17+F20 -> 48.82 | G21: =G17+G20 -> 345.10
B22: ОБЕД
A23: Морковь отварная | C23: 30 | D23: 0.24 | E23: 0.03 | F23: 0.60 | G23: 3.60 | H23: стр 562 Сб общ пит1996
A24: Суп вермишелевый с картофелем и курицей | C24: 150/10 | D24: 3.00 | E24: 4.32 | F24: 11.34 | G24: 99.00 | H24: №88 Дели 2016
A25: Тефтели из говядины | C25: 50 | D25: 3.87 | E25: 5 | F25: 3.13 | G25: 73 | H25: ТТК № 1152 от 09.10.2020
A26: Каша гречневая вязкая | C26: 110/2,5 | D26: 5.50 | E26: 5.00 | F26: 32.00 | G26: 195.00 | H26: №182,Дели 2016
A27: Кисель | C27: 150 | F27: 8.34 | G27: 33.34 | H27: №284Партнер2014
A28: Хлеб сельский | C28: 30 | D28: 1.5 | E28: 0.3 | F28: 14.3 | G28: 66
A29: Итого: | C29: 532.50 | D29: =SUM(D23:D28) -> 14.11 | E29: =SUM(E23:E28) -> 14.65 | F29: =SUM(F23:F28) -> 69.71 | G29: =SUM(G23:G28) -> 469.94
B30: ПОЛДНИК
A31: Булочка Домашняя | C31: 40 | D31: 3.60 | E31: 4.00 | F31: 29.00 | G31: 167.00 | H31: №258 Партнер г. Уфа 2014
A32: Катык | C32: 100 | D32: 3.00 | E32: 2.50 | F32: 4.50 | G32: 54.30 | H32: №401Дели2010
A33: Рагу с курицей | C33: 20/100 | D33: 4.50 | E33: 7.60 | F33: 13.00 | G33: 138.00 | H33: ТТК №63
A34: Напиток из урюка | C34: 150 | D34: 0.50 | E34: 0.03 | F34: 12.50 | G34: 52.10 | H34: ТТК №68
A35: Хлеб пшеничный 1с | C35: 20 | D35: 1.6 | E35: 0.2 | F35: 9.8 | G35: 47
A36: Итого: | C36: 430.00 | D36: =SUM(D31:D35) -> 13.20 | E36: =SUM(E31:E35) -> 14.33 | F36: =SUM(F31:F35) -> 68.80 | G36: =SUM(G31:G35) -> 458.40
A37: ВСЕГО: | C37: =C17+C20+C29+C36 -> 1434.50 | D37: =D17+D20+D29+D36 -> 37.36 | E37: =E17+E20+E29+E36 -> 41.19 | F37: =F17+F20+F29+F36 -> 187.33 | G37: =G17+G20+G29+G36 -> 1273.44
A38: День 2- ой
A39: Прием пищи | C39: Выход блюда | D39: Пищевые вещества (г) | G39: Энергетическая | H39: № рецептуры
A40: Наименование блюд | G40: ценность
D41: белки | E41: жиры | F41: угл-ды | G41: Ккал
B42: ЗАВТРАК
A43: Каша "Дружба" молочная с маслом | C43: 150/3 | D43: 3.90 | E43: 4.35 | F43: 19.00 | G43: 131.00 | H43: ТТК №7
A44: Какао с молоком | C44: 160 | D44: 2.15 | E44: 2.29 | F44: 12.09 | G44: 65.16 | H44: №272 Парнер г. Уфа 2014
A45: Бутерброд с сыром, маслом | C45: 25/5/3 | D45: 3.50 | E45: 5.95 | F45: 12.90 | G45: 119.60 | H45: №3Дели2010
A46: Итого: | C46: 346 | D46: =SUM(D42:D45) -> 9.55 | E46: 12.33 | F46: =SUM(F42:F45) -> 43.99 | G46: =SUM(G42:G45) -> 315.76
A47: Фрукты свежие | C47: 85 | D47: 0.40 | E47: 0.34 | F47: 10.50 | G47: 47.00 | H47: № 386 Дели 2016
A48: апельсин
A49: Итого: | C49: 85 | D49: =SUM(D47) -> 0.40 | E49: =SUM(E47) -> 0.34 | F49: =SUM(F47) -> 10.50 | G49: =SUM(G47) -> 47.00
C50: 431 | D50: =D46+D49 -> 9.95 | E50: =E46+E49 -> 12.67 | F50: =F46+F49 -> 54.49 | G50: =G46+G49 -> 362.76
B51: ОБЕД
A52: Салат из свеклы | C52: 30 | D52: 0.36 | E52: 1.50 | F52: 2.52 | G52: 25.00 | H52: №34, Дели2016
A53: Суп из овощей с курицей, со сметаной | C53: 150/10/5 | D53: 3.00 | E53: 5.80 | F53: 14.70 | G53: 121.00 | H53: №64 "Партнер"2014
A54: Соус мясной "Смак" | C54: 50 | D54: 7.21 | E54: 4.86 | F54: 12.14 | G54: 121.43 | H54: ТТК № 1523 от 28.07.2021
A55: Пюре Картофельное | C55: 110 | D55: 3.13 | E55: 3.76 | F55: 13.03 | G55: 131.15 | H55: №137 Партнер 2014
A56: Компот из свежих яблок | C56: 150 | D56: 0.10 | E56: 0.10 | F56: 10.20 | G56: 42.10 | H56: № 390 Дели 2016
A57: Хлеб сельский | C57: 30 | D57: 1.5 | E57: 0.3 | F57: 14.3 | G57: 66
A58: Итого: | C58: 535.00 | D58: =SUM(D52:D57) -> 15.30 | E58: =SUM(E52:E57) -> 16.32 | F58: =SUM(F52:F57) -> 66.89 | G58: =SUM(G52:G57) -> 506.68
B59: ПОЛДНИК
A60: Кондитерские изделия | C60: 10 | D60: 2.20 | E60: 2.80 | F60: 20.50 | G60: 114.00
A61: печенье
A62: Молоко кипяченое | C62: 100 | D62: 2.30 | E62: 2.50 | F62: 3.60 | G62: 46.00 | H62: №419 Дели2016
A63: Суфле из творога с молоком сгущенным | C63: 100/10 | D63: 5.82 | E63: 8.10 | F63: 15.53 | G63: 158.00 | H63: ТТК №567
A64: Чай с сахаром и лимоном | C64: 150/4/4 | D64: 0.09 | E64: 0.01 | F64: 8.50 | G64: 34.50 | H64: №393Дели2010
A65: Хлеб пшеничный 1с | C65: 20 | D65: 1.6 | E65: 0.2 | F65: 9.8 | G65: 47
A66: Итого: | C66: 398 | D66: =SUM(D60:D65) -> 12.01 | E66: =SUM(E60:E65) -> 13.61 | F66: =SUM(F60:F65) -> 57.93 | G66: =SUM(G60:G65) -> 399.50
A67: ВСЕГО: | C67: =C46+C49+C58+C66 -> 1364.00 | D67: =D46+D49+D58+D66 -> 37.26 | E67: =E46+E49+E58+E66 -> 42.60 | F67: =F46+F49+F58+F66 -> 179.31 | G67: =G46+G49+G58+G66 -> 1268.94
A68: День 3 - ий
A69: Прием пищи | C69: Выход блюда | D69: Пищевые вещества (г) | G69: Энергетическая | H69: № рецептуры
A70: Наименование блюд | G70: ценность
D71: белки | E71: жиры | F71: угл-ды | G71: Ккал
B72: ЗАВТРАК
A73: Каша геркулесовая молочная с маслом | C73: 150/3 | D73: 5.00 | E73: 5.63 | F73: 16.50 | G73: 136.50 | H73: ТТК №5
A74: Чай с молоком,сахаром | C74: 160/4 | D74: 2.30 | E74: 2.00 | F74: 11.90 | G74: 74.80 | H74: №394Дели2010
A75: Бутерброд с маслом сливочным | C75: 25/5 | D75: 1.9 | E75: 4.4 | F75: 13 | G75: 99 | H75: №1 Дели2010
A76: Итого: | C76: 347 | D76: =SUM(D72:D75) -> 9.20 | E76: =SUM(E72:E75) -> 12.03 | F76: =SUM(F72:F75) -> 41.40 | G76: =SUM(G72:G75) -> 310.30
A77: Сок | C77: 125 | D77: 0.80 | E77: 0.20 | F77: 7.00 | G77: 33.00 | H77: №418Дели2016
A78: персиковый
A79: Итого: | C79: =SUM(C77:C77) -> 125 | D79: =SUM(D77) -> 0.80 | E79: =SUM(E77) -> 0.20 | F79: =SUM(F77) -> 7.00 | G79: =SUM(G77) -> 33.00
C80: 472 | D80: =D76+D79 -> 10.00 | E80: =E76+E79 -> 12.23 | F80: =F76+F79 -> 48.40 | G80: =G76+G79 -> 343.30
B81: ОБЕД
A82: Огурцы свежие порционно | C82: 30 | D82: 0.21 | E82: 0.03 | F82: 0.57 | G82: 3.39 | H82: стр563,сб1996
A83: Суп с рисовой крупой и картофелем с мясными фрикадельками | C83: 150/10 | D83: 4.09 | E83: 3.87 | F83: 12.06 | G83: 99.72 | H83: №86 Дели 2016
A84: Котлеты рубленые из птицы | C84: 50 | D84: 4.40 | E84: 8.30 | F84: 2.00 | G84: 100.00 | H84: № 205,справ.М2003
A85: Макароны отварные | C85: 110 | D85: 4.06 | E85: 3.05 | F85: 25.00 | G85: 143.40 | H85: №218 Дели 2016
A86: Компот из сухофруктов | C86: 150 | D86: 0.15 | E86: 0.1 | F86: 21.5 | G86: 87 | H86: №394, Дели 2016
A87: Хлеб сельский | C87: 30 | D87: 1.5 | E87: 0.3 | F87: 14.3 | G87: 66
A88: Итого: | C88: 530 | D88: =SUM(D82:D87) -> 14.41 | E88: =SUM(E82:E87) -> 15.64 | F88: =SUM(F82:F87) -> 75.43 | G88: =SUM(G82:G87) -> 499.51
B89: ПОЛДНИК
A90: Булочка Дорожная | C90: 40 | D90: 2.84 | E90: 4.73 | F90: 24.08 | G90: 150.40 | H90: №453 Дели 2016
A91: Ряженка | C91: 100 | D91: 2.90 | E91: 2.50 | F91: 4.20 | G91: 55.60 | H91: №401Дели2010
A92: Яйцо вареное | C92: 1/2шт | D92: 2.50 | E92: 2.30 | F92: 0.15 | G92: 31.50 | H92: №227 Дели 2016
A93: Капуста тушеная (в сметанном соусе) | C93: 110 | D93: 2.75 | E93: 4.48 | F93: 20 | G93: 131 | H93: ТТК№53Д
A94: Напиток шиповника | C94: 150/4 | D94: 0.5 | E94: 0.25 | F94: 5.4 | G94: 25.9 | H94: ТТК № 59
A95: Хлеб пшеничный 1с | C95: 20 | D95: 1.6 | E95: 0.2 | F95: 9.8 | G95: 47
A96: Итого: | C96: 448 | D96: =SUM(D90:D95) -> 13.09 | E96: =SUM(E90:E95) -> 14.46 | F96: =SUM(F90:F95) -> 63.63 | G96: =SUM(G90:G95) -> 441.40
A97: ВСЕГО: | C97: =C76+C79+C88+C96 -> 1450 | D97: =D76+D79+D88+D96 -> 37.50 | E97: =E76+E79+E88+E96 -> 42.33 | F97: =F76+F79+F88+F96 -> 187.46 | G97: =G76+G79+G88+G96 -> 1284.21
A98: День 4 - ый
A99: Прием пищи | C99: Выход блюда | D99: Пищевые вещества (г) | G99: Энергетическая | H99: № рецептуры
A100: Наименование блюд | G100: ценность
D101: белки | E101: жиры | F101: угл-ды | G101: Ккал
B102: ЗАВТРАК
A103: Каша пшённая молочная с маслом | C103: 150/3 | D103: 6.00 | E103: 4.95 | F103: 19.50 | G103: 146.00 | H103: ТТК №6
A104: Кофейный напиток с молоком | C104: 165/7 | D104: 1.16 | E104: 1.28 | F104: 11.4 | G104: 62 | H104: №270 Партнер г. Уфа 2014
A105: Бутерброд с сыром, маслом | C105: 25/5/3 | D105: 3.50 | E105: 5.95 | F105: 12.90 | G105: 119.60 | H105: №3Дели2010
A106: Итого: | C106: 358 | D106: =SUM(D102:D105) -> 10.66 | E106: =SUM(E102:E105) -> 12.18 | F106: =SUM(F102:F105) -> 43.80 | G106: =SUM(G102:G105) -> 327.60
A107: Фрукты свежие | C107: 85 | D107: 0.34 | E107: 0.34 | F107: 10.20 | G107: 45.00 | H107: № 386 Дели 2016
A108: яблоко зеленое
A109: Итого: | C109: 85 | D109: =SUM(D107) -> 0.34 | E109: =SUM(E107) -> 0.34 | F109: =SUM(F107) -> 10.20 | G109: =SUM(G107) -> 45.00
C110: 443 | D110: =D106+D109 -> 11.00 | E110: =E106+E109 -> 12.52 | F110: =F106+F109 -> 54.00 | G110: =G106+G109 -> 372.60
B111: ОБЕД
A112: Салат из свеклы и моркови | C112: 30 | D112: 0.80 | E112: 1.50 | F112: 3.60 | G112: 30.60 | H112: ТТК №60
A113: Щи со свежей капустой, картофелем, на м/б и сметаной | C113: 150/5 | D113: 3.45 | E113: 6.00 | F113: 17.85 | G113: 140.00 | H113: №73 Дели 2016
A114: Жаркое по-домашнему из отварной говядины | C114: 130 | D114: 8.86 | E114: 9.01 | F114: 27.28 | G114: 226 | H114: ТТК №29 Д
A115: Кисель | C115: 150 | F115: 8.34 | G115: 33.34 | H115: №284Партнер2014
A116: Хлеб сельский | C116: 30 | D116: 1.5 | E116: 0.3 | F116: 14.3 | G116: 66
A117: Итого: | C117: 495 | D117: =SUM(D112:D116) -> 14.61 | E117: =SUM(E112:E116) -> 16.81 | F117: =SUM(F112:F116) -> 71.37 | G117: =SUM(G112:G116) -> 495.94
B118: ПОЛДНИК
A119: Кондитерские изделия | C119: 21 | D119: 1.00 | E119: 2.50 | F119: 16.30 | G119: 75.00
A120: вафли
A121: Кефир | C121: 100 | D121: 3.36 | E121: 2.5 | F121: 4.6 | G121: 61.8 | H121: №401Дели2010
A122: Пудинг из творога с рисом с повидлом | C122: 110/10 | D122: 7.20 | E122: 8.32 | F122: 22.64 | G122: 194.00 | H122: № 250 Дели 2016
A123: Чай с сахаром | C123: 160/4 | D123: 0.05 | E123: 0.01 | F123: 4.42 | G123: 18.00 | H123: № 411 Дели2016
A124: Хлеб пшеничный 1с | C124: 20 | D124: 1.6 | E124: 0.2 | F124: 9.8 | G124: 47
A125: Итого: | C125: 425 | D125: =SUM(D119:D124) -> 13.21 | E125: =SUM(E119:E124) -> 13.53 | F125: =SUM(F119:F124) -> 57.76 | G125: =SUM(G119:G124) -> 395.80
A126: ВСЕГО: | C126: =C106+C109+C117+C125 -> 1363 | D126: =D106+D109+D117+D125 -> 38.82 | E126: =E106+E109+E117+E125 -> 42.86 | F126: =F106+F109+F117+F125 -> 183.13 | G126: =G106+G109+G117+G125 -> 1264.34
A127: День 5 - ый
A128: Прием пищи | C128: Выход блюда | D128: Пищевые вещества (г) | G128: Энергетическая | H128: № рецептуры
A129: Наименование блюд | G129: ценность
D130: белки | E130: жиры | F130: угл-ды | G130: Ккал
B131: ЗАВТРАК
A132: Каша полбяная молочная с маслом | C132: 150/3 | D132: 5.4 | E132: 5.5 | F132: 14.4 | G132: 130 | H132: ТТК №1
A133: Какао с молоком | C133: 160 | D133: 2.15 | E133: 2.29 | F133: 12.09 | G133: 65.16 | H133: №272 Парнер г. Уфа 2014
A134: Бутерброд с маслом сливочным | C134: 25/5 | D134: 1.9 | E134: 4.4 | F134: 13 | G134: 99 | H134: №1 Дели2010
A135: Итого: | C135: 343 | D135: =SUM(D131:D134) -> 9.45 | E135: =SUM(E131:E134) -> 12.19 | F135: =SUM(F131:F134) -> 39.49 | G135: =SUM(G131:G134) -> 294.16
A136: Сок | C136: 125 | D136: 0.30 | E136: 0.00 | F136: 10.00 | G136: 40.00 | H136: №418Дели2016
A137: вишневый
A138: Итого: | C138: 125 | D138: =SUM(D136) -> 0.30 | E138: =SUM(E136) -> 0.00 | F138: =SUM(F136) -> 10.00 | G138: =SUM(G136) -> 40.00
C139: 468 | D139: =D135+D138 -> 9.75 | E139: =E135+E138 -> 12.19 | F139: =F135+F138 -> 49.49 | G139: =G135+G138 -> 334.16
B140: ОБЕД
A141: Огурцы соленые | C141: 30 | D141: 0.24 | E141: 0.03 | F141: 0.51 | G141: 3.20 | H141: стр563,сб1996
A142: Свекольник с курицей, со сметаной | C142: 150/10/5 | D142: 2.90 | E142: 4.53 | F142: 14.21 | G142: 109.00 | H142: №35,сб.Пермь2001
A143: Капуста тушеная с мясом | C143: 130 | D143: 10.60 | E143: 12.65 | F143: 33.00 | G143: 288.00 | H143: №54-10М Сборник рецептур Москва
A144: Компот из свежих яблок | C144: 150 | D144: 0.10 | E144: 0.10 | F144: 10.20 | G144: 42.10 | H144: № 390 Дели 2016
A145: Хлеб сельский | C145: 30 | D145: 1.5 | E145: 0.3 | F145: 14.3 | G145: 66
A146: Итого: | C146: 505 | D146: =SUM(D141:D145) -> 15.34 | E146: =SUM(E141:E145) -> 17.61 | F146: =SUM(F141:F145) -> 72.22 | G146: =SUM(G141:G145) -> 508.30
B147: ПОЛДНИК
A148: Кондитерские изделия | C148: 10 | D148: 1.30 | E148: 2.00 | F148: 10.10 | G148: 55.00
A149: крекер
A150: Молоко кипяченое | C150: 100 | D150: 2.30 | E150: 2.50 | F150: 3.60 | G150: 46.00 | H150: №419 Дели2016
A151: Плов из курицы | C151: 110 | D151: 7.6 | E151: 9 | F151: 24.2 | G151: 211 | H151: №321 Дели 2016
A152: Чай с сахаром и лимоном | C152: 150/4/4 | D152: 0.09 | E152: 0.01 | F152: 8.50 | G152: 34.50 | H152: №393Дели2010
A153: Хлеб пшеничный 1с | C153: 20 | D153: 1.6 | E153: 0.2 | F153: 9.8 | G153: 47
A154: Итого: | C154: 398 | D154: =SUM(D148:D153) -> 12.89 | E154: =SUM(E148:E153) -> 13.71 | F154: =SUM(F148:F153) -> 56.20 | G154: =SUM(G148:G153) -> 393.50
A155: ВСЕГО: | C155: =C135+C138+C146+C154 -> 1371 | D155: =D135+D138+D146+D154 -> 37.98 | E155: =E135+E138+E146+E154 -> 43.51 | F155: =F135+F138+F146+F154 -> 177.91 | G155: =G135+G138+G146+G154 -> 1235.96
A157: ИТОГО за 1 неделю | C157: =C37+C67+C97+C126+C155 -> 6982.50 | D157: =D37+D67+D97+D126+D155 -> 188.92 | E157: =E37+E67+E97+E126+E155 -> 212.49 | F157: =F37+F67+F97+F126+F155 -> 915.14 | G157: =G37+G67+G97+G126+G155 -> 6326.89
C158: =C157/5 -> 1396.5 | D158: =D157/5 -> 37.8 | E158: =E157/5 -> 42.5 | F158: =F157/5 -> 183.0 | G158: =G157/5 -> 1265.4
C159: 2 НЕДЕЛЯ
A160: День 6 - ой
A161: Прием пищи | C161: Выход блюда | D161: Пищевые вещества (г) | G161: Энергетическая | H161: № рецептуры
A162: Наименование блюд | G162: ценность
D163: белки | E163: жиры | F163: угл-ды | G163: Ккал
B164: ЗАВТРАК
A165: Каша геркулесовая молочная с маслом | C165: 150/3 | D165: 5.00 | E165: 5.63 | F165: 16.50 | G165: 136.00 | H165: ТТК №5
A166: Чай с молоком,сахаром | C166: 160/4 | D166: 2.30 | E166: 2.00 | F166: 11.90 | G166: 74.80 | H166: №394Дели2010
A167: Бутерброд с сыром, маслом | C167: 25/5/3 | D167: 3.50 | E167: 5.95 | F167: 12.90 | G167: 119.60 | H167: №3Дели2010
A168: Итого: | C168: 350 | D168: =SUM(D164:D167) -> 10.80 | E168: =SUM(E164:E167) -> 13.58 | F168: =SUM(F164:F167) -> 41.30 | G168: =SUM(G164:G167) -> 330.40
A169: Фрукты свежие | C169: 85 | D169: 0.34 | E169: 0.34 | F169: 10.20 | G169: 45.00 | H169: №386Дели2016
A170: яблоко
A171: Итого: | C171: =SUM(C169:C169) -> 85 | D171: =SUM(D169) -> 0.34 | E171: =SUM(E169) -> 0.34 | F171: =SUM(F169) -> 10.20 | G171: =SUM(G169) -> 45.00
C172: 435 | D172: =D168+D171 -> 11.14 | E172: 12.30 | F172: =F168+F171 -> 51.50 | G172: 365.00
B173: ОБЕД
A174: Морковь отварная | C174: 30 | D174: 0.24 | E174: 0.03 | F174: 0.60 | G174: 3.60 | H174: стр 562 Сб общ пит1996
A175: Рассольник ленинградский с мясными фрикадельками, со сметаной | C175: 150/10/5 | D175: 2.67 | E175: 3.38 | F175: 17.7 | G175: 112 | H175: №82 Дели 2016
A176: Биточки куриные "Солнышко" | C176: 50 | D176: 6.40 | E176: 8.50 | F176: 5.20 | G176: 123.00 | H176: ТТК №97Д
A177: Макароны отварные | C177: 110 | D177: 4.10 | E177: 3.00 | F177: 25.00 | G177: 143.40 | H177: №218 Дели 2016
A178: Кисель | C178: 150 | F178: 8.34 | G178: 33.34 | H178: №284Партнер2014
A179: Хлеб сельский | C179: 30 | D179: 1.5 | E179: 0.3 | F179: 14.3 | G179: 66
A180: Итого: | C180: 535 | D180: =SUM(D174:D179) -> 14.91 | E180: =SUM(E174:E179) -> 15.21 | F180: =SUM(F174:F179) -> 71.14 | G180: =SUM(G174:G179) -> 481.34
B181: ПОЛДНИК
A182: Булочка сдобная | C182: 40 | D182: 3.04 | E182: 3.84 | F182: 17.84 | G182: 118.4 | H182: № 257 Партнер2014 г. Уфа
A183: Ряженка | C183: 100 | D183: 3.00 | E183: 2.50 | F183: 4.20 | G183: 55.60 | H183: №401Дели2010
A184: Гречка с фаршем и овощами | C184: 110 | D184: 5.50 | E184: 7.50 | F184: 24.00 | G184: 185.00 | H184: ТТК №1630 от 10.11.2021
A185: Напиток из урюка | C185: 150 | D185: 0.50 | E185: 0.03 | F185: 12.50 | G185: 52.10 | H185: ТТК №68
A186: Хлеб пшеничный 1с | C186: 20 | D186: 1.6 | E186: 0.2 | F186: 9.8 | G186: 47
A187: Итого: | C187: 420 | D187: =SUM(D182:D186) -> 13.64 | E187: =SUM(E182:E186) -> 14.07 | F187: =SUM(F182:F186) -> 68.34 | G187: =SUM(G182:G186) -> 458.10
A188: ВСЕГО: | C188: =C168+C180+C187 -> 1305 | D188: =D168+D171+D180+D187 -> 39.69 | E188: =E168+E171+E180+E187 -> 43.20 | F188: =F168+F171+F180+F187 -> 190.98 | G188: =G168+G171+G180+G187 -> 1314.84
A189: День 7 - ой
A190: Прием пищи | C190: Выход блюда | D190: Пищевые вещества (г) | G190: Энергетическая | H190: № рецептуры
A191: Наименование блюд | G191: ценность
D192: белки | E192: жиры | F192: угл-ды | G192: Ккал
B193: ЗАВТРАК
A194: Каша ячневая молочная с маслом | C194: 150/3 | D194: 7.16 | E194: 6.63 | F194: 15.15 | G194: 149.00 | H194: ТТК №8
A195: Кофейный напиток с молоком | C195: 165/7 | D195: 1.16 | E195: 1.28 | F195: 11.4 | G195: 62 | H195: №270 Партнер г. Уфа 2014
A196: Бутерброд с маслом сливочным | C196: 25/5 | D196: 1.9 | E196: 4.4 | F196: 13 | G196: 99 | H196: №1 Дели2010
A197: Итого: | C197: 355 | D197: =SUM(D193:D196) -> 10.22 | E197: =SUM(E193:E196) -> 12.31 | F197: =SUM(F193:F196) -> 39.55 | G197: =SUM(G193:G196) -> 310.00
A198: Сок | C198: 125 | D198: 0.30 | E198: 0.00 | F198: 12.00 | G198: 49.00 | H198: №418Дели2016
A199: яблочный
A200: Итого: | C200: 125 | D200: =SUM(D198:D199) -> 0.30 | E200: =SUM(E198:E199) -> 0.00 | F200: =SUM(F198:F199) -> 12.00 | G200: =SUM(G198:G199) -> 49.00
C201: 480 | D201: =D197+D200 -> 10.52 | E201: =E197+E200 -> 12.31 | F201: 51.55 | G201: 359.00
... 131 more rows

Sheet кал1-3
C1: Калорийность в разрезе
D2: ДОУ от 1 до 3 лет
A4: с отклонениями | B4: 1100-1500 | C4: 35,9-37,8-39,7 | D4: 40,18-42,3-44,4 | E4: 173,56-182,7-191,8 | F4: 1197-1260-1323
B5: Объемы порций | C5: Белки | D5: Жиры | E5: Угл-ды | F5: Энергетическая ценность
A6: 1 | B6: 1434.50 | C6: 37.36 | D6: 41.19 | E6: 187.33 | F6: 1273.44
A7: 2 | B7: 1364.00 | C7: 37.26 | D7: 42.60 | E7: 179.31 | F7: 1268.94
A8: 3 | B8: 1450.00 | C8: 37.50 | D8: 42.33 | E8: 187.46 | F8: 1284.21
A9: 4 | B9: 1363.00 | C9: 38.82 | D9: 42.86 | E9: 183.13 | F9: 1264.34
A10: 5 | B10: 1371.00 | C10: 37.98 | D10: 43.51 | E10: 177.91 | F10: 1235.96
A11: 6 | B11: 1305.00 | C11: 39.69 | D11: 43.20 | E11: 190.98 | F11: 1314.84
A12: 7 | B12: 1413.00 | C12: 37.54 | D12: 42.84 | E12: 182.70 | F12: 1263.60
A13: 8 | B13: 1391.00 | C13: 38.88 | D13: 45.11 | E13: 176.22 | F13: 1264.30
A14: 9 | B14: 1402.00 | C14: 37.80 | D14: 42.91 | E14: 176.39 | F14: 1262.95
A15: 10 | B15: 1446.00 | C15: 41.73 | D15: 44.38 | E15: 198.33 | F15: 1356.70
A17: Всего | B17: 13939.50 | C17: 384.56 | D17: 430.92 | E17: 1839.76 | F17: 12789.28
A18: В среднем | B18: 1393.95 | C18: 38.46 | D18: 43.09 | E18: 183.98 | F18: 1278.93

Sheet кал3-7
C5: Калорийность
D6: ДОУ от 3 до 7 лет
A7: с отклонениями | B7: 1350-1800 | C7: 46,17-48,6-51,03 | D7: 51,3-54-56,7 | E7: 223,154-234,9-246,644 | F7: 1539-1620-1701
B8: Объемы порций | C8: Белки | D8: Жиры | E8: Угл-ды | F8: Энергетическая ценность
A9: 1 | B9: 1738.50 | C9: 48.66 | D9: 53.49 | E9: 242.37 | F9: 1647.10
A10: 2 | B10: 1701.50 | C10: 49.62 | D10: 55.56 | E10: 237.88 | F10: 1645.60
A11: 3 | B11: 1768.50 | C11: 48.88 | D11: 53.41 | E11: 236.75 | F11: 1601.80
A12: 4 | B12: 1636.50 | C12: 48.68 | D12: 55.17 | E12: 228.65 | F12: 1608.10
A13: 5 | B13: 1631.50 | C13: 47.37 | D13: 52.18 | E13: 228.89 | F13: 1598.90
A14: 6 | B14: 1685.50 | C14: 49.22 | D14: 55.99 | E14: 241.19 | F14: 1670.50
A15: 7 | B15: 1675.50 | C15: 47.77 | D15: 52.37 | E15: 235.97 | F15: 1602.70
A16: 8 | B16: 1647.50 | C16: 49.63 | D16: 56.99 | E16: 225.23 | F16: 1613.80
A17: 9 | B17: 1710.50 | C17: 46.44 | D17: 52.15 | E17: 232.05 | F17: 1590.30
A18: 10 | B18: 1706.50 | C18: 50.10 | D18: 53.04 | E18: 239.91 | F18: 1622.70
A20: Всего | B20: 16902.00 | C20: 486.35 | D20: 540.36 | E20: 2348.89 | F20: 16201.50
A21: В среднем | B21: 1690.20 | C21: 48.64 | D21: 54.04 | E21: 234.89 | F21: 1620.15

Sheet свод1-3
B1: Расход продуктов ДОУ
D2: от 1 до 3 лет | K2: нетто
A3: Наименов. прод. | B3: 1 | C3: 2 | D3: 3 | E3: 4 | F3: 5 | G3: 6 | H3: 7 | I3: 8 | J3: 9 | K3: 10 | L3: Кол-во | M3: Среднее
A5: Сахар | B5: 19.90 | C5: 23.45 | D5: 22.10 | E5: 22.35 | F5: 19.65 | G5: 20.40 | H5: 22.35 | I5: 15.55 | J5: 23.45 | K5: 17.25 | L5: 206.45 | M5: 20.65
A6: Заварка | B6: 0.20 | C6: 0.30 | D6: 0.20 | E6: 0.20 | F6: 0.30 | G6: 0.20 | H6: 0.30 | I6: 0.20 | J6: 0.20 | K6: 0.30 | L6: 2.40 | M6: 0.24
A7: Яйцо | B7: 0.80 | C7: 4.70 | D7: 25.00 | E7: 5.72 | F7: 0.00 | G7: 6.40 | H7: 5.72 | I7: 2.00 | J7: 4.70 | K7: 98.62 | L7: 153.66 | M7: 15.37
A8: Дрожжи сухие | B8: 0.16 | C8: 0.00 | D8: 0.20 | E8: 0.00 | F8: 0.00 | G8: 0.30 | H8: 0.00 | I8: 0.16 | J8: 0.00 | K8: 0.16 | L8: 0.98 | M8: 0.10
A9: Батон нарезной | B9: 25.00 | C9: 25.00 | D9: 25.00 | E9: 25.00 | F9: 25.00 | G9: 25.00 | H9: 25.00 | I9: 25.00 | J9: 25.00 | K9: 25.00 | L9: 250.00 | M9: 25.00
A10: Хлеб пшеничный 1с | B10: 24.00 | C10: 20.00 | D10: 29.00 | E10: 20.00 | F10: 20.00 | G10: 20.00 | H10: 32.00 | I10: 20.00 | J10: 24.30 | K10: 20.00 | L10: 229.30 | M10: 22.93
A11: Хлеб сельский | B11: 30.00 | C11: 30.00 | D11: 30.00 | E11: 30.00 | F11: 30.00 | G11: 30.00 | H11: 30.00 | I11: 30.00 | J11: 30.00 | K11: 30.00 | L11: 300.00 | M11: 30.00
A12: Мука пшеничная | B12: 28.70 | C12: 0.89 | D12: 27.32 | E12: 0.00 | F12: 1.21 | G12: 24.00 | H12: 1.00 | I12: 21.30 | J12: 0.00 | K12: 19.85 | L12: 124.27 | M12: 12.43
A13: Кисель-концентрат | B13: 17.50 | C13: 0.00 | D13: 0.00 | E13: 17.50 | F13: 0.00 | G13: 17.50 | H13: 0.00 | I13: 0.00 | J13: 17.50 | K13: 0.00 | L13: 70.00 | M13: 7.00
A14: Макаронные изделия | B14: 0.00 | C14: 0.00 | D14: 38.50 | E14: 0.00 | F14: 0.00 | G14: 38.50 | H14: 0.00 | I14: 0.00 | J14: 0.00 | K14: 0.00 | L14: 77.00 | M14: 7.70
A15: Вермишель | B15: 6.00 | C15: 0.00 | D15: 0.00 | E15: 0.00 | F15: 0.00 | G15: 0.00 | H15: 0.00 | I15: 14.00 | J15: 0.00 | K15: 0.00 | L15: 20.00 | M15: 2.00
A16: Крупа рисовая | B16: 0.00 | C16: 11.00 | D16: 9.00 | E16: 9.78 | F16: 26.50 | G16: 0.00 | H16: 9.78 | I16: 27.70 | J16: 0.00 | K16: 31.90 | L16: 125.66 | M16: 12.57
A17: Крупа кукурузная | B17: 0.00 | C17: 0.00 | D17: 0.00 | E17: 0.00 | F17: 0.00 | G17: 0.00 | H17: 0.00 | I17: 0.00 | J17: 0.00 | K17: 0.00 | L17: 0.00 | M17: 0.00
A18: Крупа манная | B18: 17.00 | C18: 7.70 | D18: 0.00 | E18: 0.00 | F18: 0.00 | G18: 0.00 | H18: 0.00 | I18: 0.00 | J18: 7.70 | K18: 0.00 | L18: 32.40 | M18: 3.24
A19: Горох | B19: 0.00 | C19: 0.00 | D19: 0.00 | E19: 0.00 | F19: 0.00 | G19: 0.00 | H19: 15.01 | I19: 0.00 | J19: 0.00 | K19: 0.00 | L19: 15.01 | M19: 1.50
A20: Крупа пшенная | B20: 0.00 | C20: 8.00 | D20: 0.00 | E20: 23.00 | F20: 0.00 | G20: 0.00 | H20: 0.00 | I20: 0.00 | J20: 0.00 | K20: 23.00 | L20: 54.00 | M20: 5.40
A21: Крупа ячневая | B21: 0.00 | C21: 0.00 | D21: 0.00 | E21: 0.00 | F21: 0.00 | G21: 0.00 | H21: 19.00 | I21: 0.00 | J21: 0.00 | K21: 0.00 | L21: 19.00 | M21: 1.90
A22: Полба | B22: 0.00 | C22: 0.00 | D22: 0.00 | E22: 0.00 | F22: 19.00 | G22: 0.00 | H22: 0.00 | I22: 0.00 | J22: 19.00 | K22: 0.00 | L22: 38.00 | M22: 3.80
A23: Крупа перловая | B23: 0.00 | C23: 0.00 | D23: 0.00 | E23: 0.00 | F23: 0.00 | G23: 6.00 | H23: 0.00 | I23: 0.00 | J23: 0.00 | K23: 0.00 | L23: 6.00 | M23: 0.60
A24: Крупа геркулесовая | B24: 0.00 | C24: 0.00 | D24: 19.00 | E24: 0.00 | F24: 0.00 | G24: 19.00 | H24: 0.00 | I24: 0.00 | J24: 0.00 | K24: 0.00 | L24: 38.00 | M24: 3.80
A25: Крупа пшеничная | B25: 0.00 | C25: 0.00 | D25: 0.00 | E25: 0.00 | F25: 0.00 | G25: 0.00 | H25: 0.00 | I25: 0.00 | J25: 0.00 | K25: 0.00 | L25: 0.00 | M25: 0.00
A26: Крупа гречневая | B26: 27.50 | C26: 0.00 | D26: 0.00 | E26: 0.00 | F26: 0.00 | G26: 21.00 | H26: 0.00 | I26: 0.00 | J26: 9.00 | K26: 0.00 | L26: 57.50 | M26: 5.75
A27: Картофель | B27: 118.30 | C27: 124.43 | D27: 45.00 | E27: 105.10 | F27: 25.90 | G27: 45.00 | H27: 153.90 | I27: 45.30 | J27: 139.43 | K27: 30.00 | L27: 832.36 | M27: 83.24
A28: Морковь | B28: 45.63 | C28: 10.66 | D28: 18.24 | E28: 19.04 | F28: 20.56 | G28: 58.80 | H28: 6.00 | I28: 37.60 | J28: 6.00 | K28: 33.54 | L28: 256.07 | M28: 25.61
A29: Лук репчатый | B29: 14.60 | C29: 12.66 | D29: 16.16 | E29: 17.00 | F29: 19.90 | G29: 16.19 | H29: 14.90 | I29: 25.40 | J29: 14.57 | K29: 17.90 | L29: 169.28 | M29: 16.93
A30: Свекла | B30: 0.00 | C30: 28.50 | D30: 0.00 | E30: 17.04 | F30: 38.30 | G30: 0.00 | H30: 28.50 | I30: 24.00 | J30: 0.00 | K30: 17.04 | L30: 153.38 | M30: 15.34
A31: Капуста свежая | B31: 0.00 | C31: 12.00 | D31: 137.12 | E31: 30.00 | F31: 99.32 | G31: 0.00 | H31: 0.00 | I31: 36.40 | J31: 0.00 | K31: 12.00 | L31: 326.84 | M31: 32.68
A32: Икра кабачковая | B32: 0.00 | C32: 0.00 | D32: 0.00 | E32: 0.00 | F32: 0.00 | G32: 0.00 | H32: 0.00 | I32: 0.00 | J32: 0.00 | K32: 0.00 | L32: 0.00 | M32: 0.00
A33: Огурцы соленые | B33: 0.00 | C33: 0.00 | D33: 0.00 | E33: 0.00 | F33: 30.00 | G33: 9.00 | H33: 0.00 | I33: 0.00 | J33: 30.00 | K33: 0.00 | L33: 69.00 | M33: 6.90
A34: Помидоры свежие | B34: 0.00 | C34: 0.00 | D34: 0.00 | E34: 0.00 | F34: 0.00 | G34: 0.00 | H34: 0.00 | I34: 0.00 | J34: 0.00 | K34: 0.00 | L34: 0.00 | M34: 0.00
A35: Огурцы свежие | B35: 0.00 | C35: 0.00 | D35: 30.00 | E35: 0.00 | F35: 0.00 | G35: 0.00 | H35: 0.00 | I35: 28.80 | J35: 0.00 | K35: 0.00 | L35: 58.80 | M35: 5.88
A36: перец | B36: 0.00 | C36: 0.00 | D36: 0.00 | E36: 0.00 | F36: 0.00 | G36: 0.00 | H36: 0.00 | I36: 0.00 | J36: 0.00 | K36: 0.00 | L36: 0.00 | M36: 0.00
A37: Томат-паста | B37: 0.00 | C37: 4.00 | D37: 0.00 | E37: 0.00 | F37: 0.00 | G37: 0.00 | H37: 0.00 | I37: 0.00 | J37: 0.00 | K37: 2.00 | L37: 6.00 | M37: 0.60
A38: Масло сливочное | B38: 10.50 | C38: 9.00 | D38: 19.80 | E38: 8.79 | F38: 12.33 | G38: 11.80 | H38: 14.49 | I38: 8.40 | J38: 12.86 | K38: 14.60 | L38: 122.57 | M38: 12.26
A39: Масло растительное | B39: 11.50 | C39: 4.90 | D39: 2.18 | E39: 8.50 | F39: 6.35 | G39: 8.70 | H39: 3.50 | I39: 9.30 | J39: 2.90 | K39: 9.90 | L39: 67.73 | M39: 6.77
A40: Фрукты свежие | B40: 0.00 | C40: 85.00 | D40: 0.00 | E40: 85.00 | F40: 0.00 | G40: 85.00 | H40: 0.00 | I40: 85.00 | J40: 0.00 | K40: 85.00 | L40: 425.00 | M40: 42.50
A41: Яблоки | B41: 0.00 | C41: 30.00 | D41: 0.00 | E41: 0.00 | F41: 30.00 | G41: 0.00 | H41: 30.00 | I41: 0.00 | J41: 0.00 | K41: 0.00 | L41: 90.00 | M41: 9.00
A42: крыжовник зам. | B42: 0.00 | C42: 0.00 | D42: 0.00 | E42: 0.00 | F42: 0.00 | G42: 0.00 | H42: 0.00 | I42: 0.00 | J42: 0.00 | K42: 0.00 | L42: 0.00 | M42: 0.00
A43: Лимон | B43: 0.00 | C43: 4.00 | D43: 0.00 | E43: 0.00 | F43: 4.00 | G43: 0.00 | H43: 4.00 | I43: 0.00 | J43: 0.00 | K43: 4.00 | L43: 16.00 | M43: 1.60
A44: Ягодная смесь зам. | B44: 0.00 | C44: 0.00 | D44: 0.00 | E44: 0.00 | F44: 0.00 | G44: 0.00 | H44: 0.00 | I44: 0.00 | J44: 0.00 | K44: 0.00 | L44: 0.00 | M44: 0.00
A45: Сок | B45: 125.00 | C45: 0.00 | D45: 125.00 | E45: 0.00 | F45: 125.00 | G45: 0.00 | H45: 125.00 | I45: 0.00 | J45: 125.00 | K45: 0.00 | L45: 625.00 | M45: 62.50
A46: Фруктовое пюре | B46: 0.00 | C46: 0.00 | D46: 0.00 | E46: 0.00 | F46: 0.00 | G46: 0.00 | H46: 0.00 | I46: 0.00 | J46: 0.00 | K46: 0.00 | L46: 0.00 | M46: 0.00
A47: Сухофрукты | B47: 0.00 | C47: 0.00 | D47: 15.00 | E47: 0.00 | F47: 0.00 | G47: 0.00 | H47: 0.00 | I47: 0.00 | J47: 0.00 | K47: 15.00 | L47: 30.00 | M47: 3.00
A48: Урюк | B48: 12.50 | C48: 0.00 | D48: 0.00 | E48: 0.00 | F48: 0.00 | G48: 12.50 | H48: 0.00 | I48: 12.50 | J48: 0.00 | K48: 0.00 | L48: 37.50 | M48: 3.75
A49: повидло фруктовое | B49: 0.00 | C49: 0.00 | D49: 0.00 | E49: 10.00 | F49: 0.00 | G49: 0.00 | H49: 10.00 | I49: 16.00 | J49: 0.00 | K49: 0.00 | L49: 36.00 | M49: 3.60
A50: Шиповник порошок | B50: 0.00 | C50: 0.00 | D50: 2.25 | E50: 0.00 | F50: 0.00 | G50: 0.00 | H50: 0.00 | I50: 2.25 | J50: 0.00 | K50: 0.00 | L50: 4.50 | M50: 0.45
A51: Молоко | B51: 75.00 | C51: 275.80 | D51: 117.00 | E51: 140.00 | F51: 235.00 | G51: 120.60 | H51: 240.00 | I51: 136.00 | J51: 165.80 | K51: 277.20 | L51: 1782.40 | M51: 178.24
A52: Кефир | B52: 0.00 | C52: 0.00 | D52: 0.00 | E52: 100.00 | F52: 0.00 | G52: 0.00 | H52: 0.00 | I52: 0.00 | J52: 100.00 | K52: 0.00 | L52: 200.00 | M52: 20.00
A53: Ряженка | B53: 0.00 | C53: 0.00 | D53: 100.00 | E53: 0.00 | F53: 0.00 | G53: 100.00 | H53: 0.00 | I53: 0.00 | J53: 0.00 | K53: 0.00 | L53: 200.00 | M53: 20.00
A54: Катык | B54: 100.00 | C54: 0.00 | D54: 0.00 | E54: 0.00 | F54: 0.00 | G54: 0.00 | H54: 0.00 | I54: 100.00 | J54: 0.00 | K54: 0.00 | L54: 200.00 | M54: 20.00
A55: Молоко сгущенное | B55: 0.00 | C55: 10.00 | D55: 0.00 | E55: 0.00 | F55: 0.00 | G55: 0.00 | H55: 0.00 | I55: 0.00 | J55: 10.00 | K55: 0.00 | L55: 20.00 | M55: 2.00
A56: Сметана | B56: 0.00 | C56: 14.50 | D56: 5.13 | E56: 7.88 | F56: 5.00 | G56: 5.00 | H56: 6.63 | I56: 5.00 | J56: 9.50 | K56: 13.23 | L56: 71.87 | M56: 7.19
A57: Творог | B57: 0.00 | C57: 71.43 | D57: 0.00 | E57: 71.50 | F57: 0.00 | G57: 0.00 | H57: 71.50 | I57: 0.00 | J57: 71.43 | K57: 0.00 | L57: 285.86 | M57: 28.59
A58: Говядина | B58: 0.00 | C58: 0.00 | D58: 0.00 | E58: 34.00 | F58: 0.00 | G58: 0.00 | H58: 0.00 | I58: 33.80 | J58: 0.00 | K58: 0.00 | L58: 67.80 | M58: 6.78
A59: Фарш из говядины | B59: 34.30 | C59: 20.00 | D59: 11.40 | E59: 0.00 | F59: 45.93 | G59: 47.80 | H59: 50.20 | I59: 0.00 | J59: 37.14 | K59: 0.00 | L59: 246.77 | M59: 24.68
A60: Цыплята | B60: 42.70 | C60: 14.70 | D60: 36.40 | E60: 0.00 | F60: 61.45 | G60: 39.10 | H60: 14.70 | I60: 31.50 | J60: 14.70 | K60: 0.00 | L60: 255.25 | M60: 25.53
A61: Индейка филе | B61: 0.00 | C61: 0.00 | D61: 0.00 | E61: 0.00 | F61: 0.00 | G61: 0.00 | H61: 0.00 | I61: 0.00 | J61: 0.00 | K61: 0.00 | L61: 0.00 | M61: 0.00
A62: куриная грудка | B62: 0.00 | C62: 0.00 | D62: 0.00 | E62: 0.00 | F62: 0.00 | G62: 0.00 | H62: 0.00 | I62: 0.00 | J62: 0.00 | K62: 56.90 | L62: 56.90 | M62: 5.69
A63: Сыр | B63: 0.00 | C63: 5.00 | D63: 0.00 | E63: 5.00 | F63: 0.00 | G63: 5.00 | H63: 0.00 | I63: 5.00 | J63: 0.00 | K63: 19.16 | L63: 39.16 | M63: 3.92
A64: рыба фарш | B64: 0.00 | C64: 0.00 | D64: 0.00 | E64: 0.00 | F64: 0.00 | G64: 0.00 | H64: 0.00 | I64: 0.00 | J64: 0.00 | K64: 0.00 | L64: 0.00 | M64: 0.00
A65: Кофейный напиток | B65: 0.00 | C65: 0.00 | D65: 0.00 | E65: 1.30 | F65: 0.00 | G65: 0.00 | H65: 1.30 | I65: 0.00 | J65: 0.00 | K65: 1.30 | L65: 3.90 | M65: 0.39
A66: Какао-порошок | B66: 0.00 | C66: 1.30 | D66: 0.00 | E66: 0.00 | F66: 1.30 | G66: 0.00 | H66: 0.00 | I66: 0.00 | J66: 1.30 | K66: 0.00 | L66: 3.90 | M66: 0.39
A67: печенье КП | B67: 0.00 | C67: 0.00 | D67: 0.00 | E67: 0.00 | F67: 0.00 | G67: 0.00 | H67: 0.00 | I67: 0.00 | J67: 0.00 | K67: 0.00 | L67: 0.00 | M67: 0.00
A68: крекер | B68: 0.00 | C68: 0.00 | D68: 0.00 | E68: 0.00 | F68: 10.00 | G68: 0.00 | H68: 0.00 | I68: 0.00 | J68: 10.00 | K68: 0.00 | L68: 20.00 | M68: 2.00
A69: Соль | B69: 2.60 | C69: 2.34 | D69: 3.50 | E69: 1.50 | F69: 2.30 | G69: 3.10 | H69: 2.50 | I69: 5.40 | J69: 2.86 | K69: 3.18 | L69: 29.28 | M69: 2.93
A70: печенье | B70: 0.00 | C70: 10.00 | D70: 0.00 | E70: 0.00 | F70: 0.00 | G70: 0.00 | H70: 10.00 | I70: 0.00 | J70: 0.00 | K70: 0.00 | L70: 20.00 | M70: 2.00
A71: Сухари панировочные | B71: 0.00 | C71: 0.00 | D71: 5.00 | E71: 0.00 | F71: 0.00 | G71: 4.00 | H71: 1.70 | I71: 0.00 | J71: 0.00 | K71: 0.00 | L71: 10.70 | M71: 1.07
A72: вафли | B72: 0.00 | C72: 0.00 | D72: 0.00 | E72: 21.00 | F72: 0.00 | G72: 0.00 | H72: 0.00 | I72: 0.00 | J72: 0.00 | K72: 0.00 | L72: 21.00 | M72: 2.10
A73: Крупы, бобовые | B73: 44.50 | C73: 26.70 | D73: 28.00 | E73: 32.78 | F73: 45.50 | G73: 46.00 | H73: 43.79 | I73: 27.70 | J73: 35.70 | K73: 54.90 | L73: 385.57 | M73: 38.56
A74: Овощи разные | B74: 60.23 | C74: 67.82 | D74: 201.52 | E74: 83.08 | F74: 208.08 | G74: 83.99 | H74: 49.40 | I74: 152.20 | J74: 50.57 | K74: 82.48 | L74: 1039.37 | M74: 103.94
A75: Фрукты | B75: 0.00 | C75: 119.00 | D75: 0.00 | E75: 95.00 | F75: 34.00 | G75: 85.00 | H75: 44.00 | I75: 101.00 | J75: 0.00 | K75: 89.00 | L75: 567.00 | M75: 56.70
A76: Фрукты сухие | B76: 12.50 | C76: 0.00 | D76: 17.25 | E76: 0.00 | F76: 0.00 | G76: 12.50 | H76: 0.00 | I76: 14.75 | J76: 0.00 | K76: 15.00 | L76: 72.00 | M76: 7.20
A77: Молочные прод. | B77: 175.00 | C77: 285.80 | D77: 217.00 | E77: 240.00 | F77: 235.00 | G77: 220.60 | H77: 240.00 | I77: 236.00 | J77: 275.80 | K77: 277.20 | L77: 2402.40 | M77: 240.24
A78: Говядина | B78: 34.30 | C78: 20.00 | D78: 11.40 | E78: 34.00 | F78: 45.93 | G78: 47.80 | H78: 50.20 | I78: 33.80 | J78: 37.14 | K78: 0.00 | L78: 314.57 | M78: 31.46
A79: птица | B79: 42.70 | C79: 14.70 | D79: 36.40 | E79: 0.00 | F79: 61.45 | G79: 39.10 | H79: 14.70 | I79: 31.50 | J79: 14.70 | K79: 56.90 | L79: 312.15 | M79: 31.22
A80: Макаронные изделия | B80: 6.00 | C80: 0.00 | D80: 38.50 | E80: 0.00 | F80: 0.00 | G80: 38.50 | H80: 0.00 | I80: 14.00 | J80: 0.00 | K80: 0.00 | L80: 97.00 | M80: 9.70
A81: Хлеб пшеничный | B81: 49.00 | C81: 45.00 | D81: 59.00 | E81: 45.00 | F81: 45.00 | G81: 49.00 | H81: 58.70 | I81: 45.00 | J81: 49.30 | K81: 45.00 | L81: 490.00 | M81: 49.00
A82: Кондитерские изделия | B82: 0.00 | C82: 10.00 | D82: 0.00 | E82: 21.00 | F82: 10.00 | G82: 0.00 | H82: 10.00 | I82: 0.00 | J82: 10.00 | K82: 0.00 | L82: 61.00 | M82: 6.10
A83: Примечание: расход хлеба пшеничного с учетом расхода сухарей панировочных
B84: Расход продуктов ДОУ
D85: от 1 до 3 лет | K85: брутто
A87: Наименов. прод. | B87: 1 | C87: 2 | D87: 3 | E87: 4 | F87: 5 | G87: 6 | H87: 7 | I87: 8 | J87: 9 | K87: 10 | L87: Кол-во | M87: Среднее
A89: Сахар | B89: 19.90 | C89: 23.45 | D89: 22.10 | E89: 22.35 | F89: 19.65 | G89: 20.40 | H89: 22.35 | I89: 15.55 | J89: 23.45 | K89: 17.25 | L89: 206.45 | M89: 20.65
A90: Заварка | B90: 0.20 | C90: 0.30 | D90: 0.20 | E90: 0.20 | F90: 0.30 | G90: 0.20 | H90: 0.30 | I90: 0.20 | J90: 0.20 | K90: 0.30 | L90: 2.40 | M90: 0.24
A91: Яйцо | B91: 0.80 | C91: 4.70 | D91: 25.00 | E91: 5.72 | F91: 0.00 | G91: 6.40 | H91: 5.72 | I91: 2.00 | J91: 4.70 | K91: 98.62 | L91: 153.66 | M91: 15.37
A92: Дрожжи сухие | B92: 0.16 | C92: 0.00 | D92: 0.20 | E92: 0.00 | F92: 0.00 | G92: 0.30 | H92: 0.00 | I92: 0.16 | J92: 0.00 | K92: 0.16 | L92: 0.98 | M92: 0.10
A93: Батон нарезной | B93: 25.00 | C93: 25.00 | D93: 25.00 | E93: 25.00 | F93: 25.00 | G93: 25.00 | H93: 25.00 | I93: 25.00 | J93: 25.00 | K93: 25.00 | L93: 250.00 | M93: 25.00
A94: Хлеб пшеничный 1с | B94: 24.00 | C94: 20.00 | D94: 29.00 | E94: 20.00 | F94: 20.00 | G94: 20.00 | H94: 34.40 | I94: 20.00 | J94: 24.30 | K94: 20.00 | L94: 231.70 | M94: 23.17
A95: Хлеб сельский | B95: 30.00 | C95: 30.00 | D95: 30.00 | E95: 30.00 | F95: 30.00 | G95: 30.00 | H95: 30.00 | I95: 30.00 | J95: 30.00 | K95: 30.00 | L95: 300.00 | M95: 30.00
A96: Мука пшеничная | B96: 28.70 | C96: 0.89 | D96: 27.32 | E96: 0.00 | F96: 1.21 | G96: 24.00 | H96: 1.00 | I96: 21.30 | J96: 0.00 | K96: 19.85 | L96: 124.27 | M96: 12.43
A97: Кисель-концентрат | B97: 17.50 | C97: 0.00 | D97: 0.00 | E97: 17.50 | F97: 0.00 | G97: 17.50 | H97: 0.00 | I97: 0.00 | J97: 17.50 | K97: 0.00 | L97: 70.00 | M97: 7.00
A98: Макаронные изделия | B98: 0.00 | C98: 0.00 | D98: 38.50 | E98: 0.00 | F98: 0.00 | G98: 38.50 | H98: 0.00 | I98: 0.00 | J98: 0.00 | K98: 0.00 | L98: 77.00 | M98: 7.70
A99: Вермишель | B99: 6.00 | C99: 0.00 | D99: 0.00 | E99: 0.00 | F99: 0.00 | G99: 0.00 | H99: 0.00 | I99: 14.00 | J99: 0.00 | K99: 0.00 | L99: 20.00 | M99: 2.00
A100: Крупа рисовая | B100: 0.00 | C100: 11.00 | D100: 9.00 | E100: 9.78 | F100: 26.50 | G100: 0.00 | H100: 9.78 | I100: 27.70 | J100: 0.00 | K100: 31.90 | L100: 125.66 | M100: 12.57
A101: Крупа кукурузная | B101: 0.00 | C101: 0.00 | D101: 0.00 | E101: 0.00 | F101: 0.00 | G101: 0.00 | H101: 0.00 | I101: 0.00 | J101: 0.00 | K101: 0.00 | L101: 0.00 | M101: 0.00
A102: Крупа манная | B102: 17.00 | C102: 7.70 | D102: 0.00 | E102: 0.00 | F102: 0.00 | G102: 0.00 | H102: 0.00 | I102: 0.00 | J102: 7.70 | K102: 0.00 | L102: 32.40 | M102: 3.24
A103: Горох | B103: 0.00 | C103: 0.00 | D103: 0.00 | E103: 0.00 | F103: 0.00 | G103: 0.00 | H103: 15.20 | I103: 0.00 | J103: 0.00 | K103: 0.00 | L103: 15.20 | M103: 1.52
A104: Крупа пшенная | B104: 0.00 | C104: 8.00 | D104: 0.00 | E104: 23.00 | F104: 0.00 | G104: 0.00 | H104: 0.00 | I104: 0.00 | J104: 0.00 | K104: 23.00 | L104: 54.00 | M104: 5.40
A105: Крупа ячневая | B105: 0.00 | C105: 0.00 | D105: 0.00 | E105: 0.00 | F105: 0.00 | G105: 0.00 | H105: 19.00 | I105: 0.00 | J105: 0.00 | K105: 0.00 | L105: 19.00 | M105: 1.90
A106: Полба | B106: 0.00 | C106: 0.00 | D106: 0.00 | E106: 0.00 | F106: 19.00 | G106: 0.00 | H106: 0.00 | I106: 0.00 | J106: 19.00 | K106: 0.00 | L106: 38.00 | M106: 3.80
A107: Крупа перловая | B107: 0.00 | C107: 0.00 | D107: 0.00 | E107: 0.00 | F107: 0.00 | G107: 6.00 | H107: 0.00 | I107: 0.00 | J107: 0.00 | K107: 0.00 | L107: 6.00 | M107: 0.60
A108: Крупа геркулесовая | B108: 0.00 | C108: 0.00 | D108: 19.00 | E108: 0.00 | F108: 0.00 | G108: 19.00 | H108: 0.00 | I108: 0.00 | J108: 0.00 | K108: 0.00 | L108: 38.00 | M108: 3.80
A109: Крупа пшеничная | B109: 0.00 | C109: 0.00 | D109: 0.00 | E109: 0.00 | F109: 0.00 | G109: 0.00 | H109: 0.00 | I109: 0.00 | J109: 0.00 | K109: 0.00 | L109: 0.00 | M109: 0.00
A110: Крупа гречневая | B110: 27.50 | C110: 0.00 | D110: 0.00 | E110: 0.00 | F110: 0.00 | G110: 21.00 | H110: 0.00 | I110: 0.00 | J110: 9.00 | K110: 0.00 | L110: 57.50 | M110: 5.75
A111: Картофель | B111: 197.56 | C111: 207.79 | D111: 75.15 | E111: 175.52 | F111: 43.25 | G111: 75.15 | H111: 228.10 | I111: 75.65 | J111: 232.84 | K111: 50.10 | L111: 1361.12 | M111: 136.11
A112: Морковь | B112: 60.68 | C112: 14.18 | D112: 24.26 | E112: 25.32 | F112: 27.30 | G112: 78.21 | H112: 7.98 | I112: 49.97 | J112: 7.98 | K112: 44.60 | L112: 340.47 | M112: 34.05
A113: Лук репчатый | B113: 17.34 | C113: 15.07 | D113: 19.23 | E113: 20.24 | F113: 23.70 | G113: 19.33 | H113: 17.74 | I113: 30.21 | J113: 17.34 | K113: 21.31 | L113: 201.51 | M113: 20.15
A114: Свекла | B114: 0.00 | C114: 38.76 | D114: 0.00 | E114: 23.17 | F114: 52.08 | G114: 0.00 | H114: 38.76 | I114: 32.64 | J114: 0.00 | K114: 23.17 | L114: 208.58 | M114: 20.86
A115: Капуста свежая | B115: 0.00 | C115: 15.00 | D115: 171.40 | E115: 37.50 | F115: 124.15 | G115: 0.00 | H115: 0.00 | I115: 45.50 | J115: 0.00 | K115: 15.00 | L115: 408.55 | M115: 40.86
A116: Икра кабачковая | B116: 0.00 | C116: 0.00 | D116: 0.00 | E116: 0.00 | F116: 0.00 | G116: 0.00 | H116: 0.00 | I116: 0.00 | J116: 0.00 | K116: 0.00 | L116: 0.00 | M116: 0.00
A117: Огурцы соленые | B117: 0.00 | C117: 0.00 | D117: 0.00 | E117: 0.00 | F117: 54.60 | G117: 16.00 | H117: 0.00 | I117: 0.00 | J117: 54.60 | K117: 0.00 | L117: 125.20 | M117: 12.52
A118: Помидоры свежие | B118: 0.00 | C118: 0.00 | D118: 0.00 | E118: 0.00 | F118: 0.00 | G118: 0.00 | H118: 0.00 | I118: 0.00 | J118: 0.00 | K118: 0.00 | L118: 0.00 | M118: 0.00
A119: Огурцы свежие | B119: 0.00 | C119: 0.00 | D119: 30.60 | E119: 0.00 | F119: 0.00 | G119: 0.00 | H119: 0.00 | I119: 29.38 | J119: 0.00 | K119: 0.00 | L119: 59.98 | M119: 6.00
A120: перец | B120: 0.00 | C120: 0.00 | D120: 0.00 | E120: 0.00 | F120: 0.00 | G120: 0.00 | H120: 0.00 | I120: 0.00 | J120: 0.00 | K120: 0.00 | L120: 0.00 | M120: 0.00
A121: Томат-паста | B121: 0.00 | C121: 4.00 | D121: 0.00 | E121: 0.00 | F121: 0.00 | G121: 0.00 | H121: 0.00 | I121: 0.00 | J121: 0.00 | K121: 2.00 | L121: 6.00 | M121: 0.60
A122: Масло сливочное | B122: 10.50 | C122: 9.00 | D122: 19.80 | E122: 8.79 | F122: 12.33 | G122: 11.80 | H122: 14.49 | I122: 8.40 | J122: 12.86 | K122: 14.60 | L122: 122.57 | M122: 12.26
A123: Масло растительное | B123: 11.50 | C123: 4.90 | D123: 2.18 | E123: 8.50 | F123: 6.35 | G123: 8.70 | H123: 3.50 | I123: 9.30 | J123: 2.90 | K123: 9.90 | L123: 67.73 | M123: 6.77
A124: Фрукты свежие | B124: 0.00 | C124: 96.90 | D124: 0.00 | E124: 96.90 | F124: 0.00 | G124: 96.90 | H124: 0.00 | I124: 96.90 | J124: 0.00 | K124: 96.90 | L124: 484.50 | M124: 48.45
A125: Яблоки | B125: 0.00 | C125: 34.00 | D125: 0.00 | E125: 0.00 | F125: 34.00 | G125: 0.00 | H125: 34.00 | I125: 0.00 | J125: 0.00 | K125: 0.00 | L125: 102.00 | M125: 10.20
A126: крыжовник зам. | B126: 0.00 | C126: 0.00 | D126: 0.00 | E126: 0.00 | F126: 0.00 | G126: 0.00 | H126: 0.00 | I126: 0.00 | J126: 0.00 | K126: 0.00 | L126: 0.00 | M126: 0.00
A127: Лимон | B127: 0.00 | C127: 4.10 | D127: 0.00 | E127: 0.00 | F127: 4.10 | G127: 0.00 | H127: 4.10 | I127: 0.00 | J127: 0.00 | K127: 4.10 | L127: 16.40 | M127: 1.64
A128: Ягодная смесь зам. | B128: 0.00 | C128: 0.00 | D128: 0.00 | E128: 0.00 | F128: 0.00 | G128: 0.00 | H128: 0.00 | I128: 0.00 | J128: 0.00 | K128: 0.00 | L128: 0.00 | M128: 0.00
A129: Сок | B129: 125.00 | C129: 0.00 | D129: 125.00 | E129: 0.00 | F129: 125.00 | G129: 0.00 | H129: 125.00 | I129: 0.00 | J129: 125.00 | K129: 0.00 | L129: 625.00 | M129: 62.50
A130: Фруктовое пюре | B130: 0.00 | C130: 0.00 | D130: 0.00 | E130: 0.00 | F130: 0.00 | G130: 0.00 | H130: 0.00 | I130: 0.00 | J130: 0.00 | K130: 0.00 | L130: 0.00 | M130: 0.00
A131: Сухофрукты | B131: 0.00 | C131: 0.00 | D131: 15.30 | E131: 0.00 | F131: 0.00 | G131: 0.00 | H131: 0.00 | I131: 0.00 | J131: 0.00 | K131: 15.30 | L131: 30.60 | M131: 3.06
A132: Урюк | B132: 12.75 | C132: 0.00 | D132: 0.00 | E132: 0.00 | F132: 0.00 | G132: 12.75 | H132: 0.00 | I132: 12.75 | J132: 0.00 | K132: 0.00 | L132: 38.25 | M132: 3.83
A133: повидло фруктовое | B133: 0.00 | C133: 0.00 | D133: 0.00 | E133: 10.00 | F133: 0.00 | G133: 0.00 | H133: 10.00 | I133: 16.00 | J133: 0.00 | K133: 0.00 | L133: 36.00 | M133: 3.60
A134: Шиповник порошок | B134: 0.00 | C134: 0.00 | D134: 2.25 | E134: 0.00 | F134: 0.00 | G134: 0.00 | H134: 0.00 | I134: 2.25 | J134: 0.00 | K134: 0.00 | L134: 4.50 | M134: 0.45
A135: Молоко | B135: 75.00 | C135: 282.04 | D135: 117.00 | E135: 140.00 | F135: 240.36 | G135: 120.60 | H135: 245.36 | I135: 136.00 | J135: 166.68 | K135: 282.56 | L135: 1805.60 | M135: 180.56
A136: Кефир | B136: 0.00 | C136: 0.00 | D136: 0.00 | E136: 103.50 | F136: 0.00 | G136: 0.00 | H136: 0.00 | I136: 0.00 | J136: 103.50 | K136: 0.00 | L136: 207.00 | M136: 20.70
A137: Ряженка | B137: 0.00 | C137: 0.00 | D137: 103.64 | E137: 0.00 | F137: 0.00 | G137: 103.64 | H137: 0.00 | I137: 0.00 | J137: 0.00 | K137: 0.00 | L137: 207.28 | M137: 20.73
A138: Катык | B138: 103.50 | C138: 0.00 | D138: 0.00 | E138: 0.00 | F138: 0.00 | G138: 0.00 | H138: 0.00 | I138: 103.50 | J138: 0.00 | K138: 0.00 | L138: 207.00 | M138: 20.70
A139: Молоко сгущенное | B139: 0.00 | C139: 10.00 | D139: 0.00 | E139: 0.00 | F139: 0.00 | G139: 0.00 | H139: 0.00 | I139: 0.00 | J139: 10.00 | K139: 0.00 | L139: 20.00 | M139: 2.00
A140: Сметана | B140: 0.00 | C140: 14.50 | D140: 5.13 | E140: 7.88 | F140: 5.00 | G140: 5.00 | H140: 6.63 | I140: 5.00 | J140: 9.50 | K140: 13.30 | L140: 71.94 | M140: 7.19
A141: Творог | B141: 0.00 | C141: 72.85 | D141: 0.00 | E141: 72.52 | F141: 0.00 | G141: 0.00 | H141: 72.52 | I141: 0.00 | J141: 72.85 | K141: 0.00 | L141: 290.74 | M141: 29.07
A142: Говядина | B142: 0.00 | C142: 0.00 | D142: 0.00 | E142: 34.00 | F142: 0.00 | G142: 0.00 | H142: 0.00 | I142: 33.80 | J142: 0.00 | K142: 0.00 | L142: 67.80 | M142: 6.78
A143: Фарш из говядины | B143: 34.30 | C143: 20.00 | D143: 11.40 | E143: 0.00 | F143: 45.93 | G143: 47.80 | H143: 50.20 | I143: 0.00 | J143: 37.14 | K143: 0.00 | L143: 246.77 | M143: 24.68
A144: Цыплята | B144: 65.69 | C144: 21.65 | D144: 56.00 | E144: 0.00 | F144: 94.54 | G144: 60.15 | H144: 22.61 | I144: 48.46 | J144: 22.61 | K144: 0.00 | L144: 391.71 | M144: 39.17
A145: Индейка филе | B145: 0.00 | C145: 0.00 | D145: 0.00 | E145: 0.00 | F145: 0.00 | G145: 0.00 | H145: 0.00 | I145: 0.00 | J145: 0.00 | K145: 0.00 | L145: 0.00 | M145: 0.00
A146: куриная грудка | B146: 0.00 | C146: 0.00 | D146: 0.00 | E146: 0.00 | F146: 0.00 | G146: 0.00 | H146: 0.00 | I146: 0.00 | J146: 0.00 | K146: 75.87 | L146: 75.87 | M146: 7.59
A147: Сыр | B147: 0.00 | C147: 5.10 | D147: 0.00 | E147: 5.10 | F147: 0.00 | G147: 5.10 | H147: 0.00 | I147: 5.10 | J147: 0.00 | K147: 19.50 | L147: 39.90 | M147: 3.99
A148: рыба | B148: 0.00 | C148: 0.00 | D148: 0.00 | E148: 0.00 | F148: 0.00 | G148: 0.00 | H148: 0.00 | I148: 0.00 | J148: 0.00 | K148: 0.00 | L148: 0.00 | M148: 0.00
A149: Кофейный напиток | B149: 0.00 | C149: 0.00 | D149: 0.00 | E149: 1.30 | F149: 0.00 | G149: 0.00 | H149: 1.30 | I149: 0.00 | J149: 0.00 | K149: 1.30 | L149: 3.90 | M149: 0.39
A150: Какао-порошок | B150: 0.00 | C150: 1.30 | D150: 0.00 | E150: 0.00 | F150: 1.30 | G150: 0.00 | H150: 0.00 | I150: 0.00 | J150: 1.30 | K150: 0.00 | L150: 3.90 | M150: 0.39
A151: печенье КП | B151: 0.00 | C151: 0.00 | D151: 0.00 | E151: 0.00 | F151: 0.00 | G151: 0.00 | H151: 0.00 | I151: 0.00 | J151: 0.00 | K151: 0.00 | L151: 0.00 | M151: 0.00
A152: крекер | B152: 0.00 | C152: 0.00 | D152: 0.00 | E152: 0.00 | F152: 10.00 | G152: 0.00 | H152: 0.00 | I152: 0.00 | J152: 10.00 | K152: 0.00 | L152: 20.00 | M152: 2.00
A153: Соль | B153: 2.60 | C153: 2.34 | D153: 3.50 | E153: 1.50 | F153: 2.30 | G153: 3.10 | H153: 2.50 | I153: 5.40 | J153: 2.86 | K153: 3.18 | L153: 29.28 | M153: 2.93
A154: печенье | B154: 0.00 | C154: 10.00 | D154: 0.00 | E154: 0.00 | F154: 0.00 | G154: 0.00 | H154: 10.00 | I154: 0.00 | J154: 0.00 | K154: 0.00 | L154: 20.00 | M154: 2.00
A155: Сухари панировочные | B155: 0.00 | C155: 0.00 | D155: 5.00 | E155: 0.00 | F155: 0.00 | G155: 4.00 | H155: 1.70 | I155: 0.00 | J155: 0.00 | K155: 0.00 | L155: 10.70 | M155: 1.07
A156: вафли | B156: 0.00 | C156: 0.00 | D156: 0.00 | E156: 21.00 | F156: 0.00 | G156: 0.00 | H156: 0.00 | I156: 0.00 | J156: 0.00 | K156: 0.00 | L156: 21.00 | M156: 2.10
A157: Крупы, бобовые | B157: 44.50 | C157: 26.70 | D157: 28.00 | E157: 32.78 | F157: 45.50 | G157: 46.00 | H157: 43.98 | I157: 27.70 | J157: 35.70 | K157: 54.90 | L157: 385.76 | M157: 38.58
A158: Овощи разные | B158: 78.02 | C158: 87.01 | D158: 245.49 | E158: 106.23 | F158: 281.83 | G158: 113.54 | H158: 64.48 | I158: 187.70 | J158: 79.92 | K158: 106.08 | L158: 1350.29 | M158: 135.03
A159: Фрукты | B159: 0.00 | C159: 135.00 | D159: 0.00 | E159: 96.90 | F159: 38.10 | G159: 96.90 | H159: 38.10 | I159: 96.90 | J159: 0.00 | K159: 101.00 | L159: 602.90 | M159: 60.29
A160: Фрукты сухие | B160: 12.75 | C160: 0.00 | D160: 15.30 | E160: 10.00 | F160: 0.00 | G160: 12.75 | H160: 10.00 | I160: 28.75 | J160: 0.00 | K160: 15.30 | L160: 104.85 | M160: 10.49
A161: Молочные прод. | B161: 178.50 | C161: 292.04 | D161: 220.64 | E161: 243.50 | F161: 240.36 | G161: 224.24 | H161: 245.36 | I161: 239.50 | J161: 280.18 | K161: 282.56 | L161: 2446.88 | M161: 244.69
A162: Говядина | B162: 34.30 | C162: 20.00 | D162: 11.40 | E162: 34.00 | F162: 45.93 | G162: 47.80 | H162: 50.20 | I162: 33.80 | J162: 37.14 | K162: 0.00 | L162: 314.57 | M162: 31.46
A163: птица | B163: 65.69 | C163: 21.65 | D163: 56.00 | E163: 0.00 | F163: 94.54 | G163: 60.15 | H163: 22.61 | I163: 48.46 | J163: 22.61 | K163: 75.87 | L163: 467.58 | M163: 46.76
A164: Макаронные изделия | B164: 6.00 | C164: 0.00 | D164: 38.50 | E164: 0.00 | F164: 0.00 | G164: 38.50 | H164: 0.00 | I164: 14.00 | J164: 0.00 | K164: 0.00 | L164: 97.00 | M164: 9.70
A165: Хлеб пшеничный | B165: 49.00 | C165: 45.00 | D165: 54.00 | E165: 45.00 | F165: 45.00 | G165: 45.00 | H165: 59.40 | I165: 45.00 | J165: 49.30 | K165: 45.00 | L165: 481.70 | M165: 48.17
A166: Кондитерские изделия | B166: 0.00 | C166: 10.00 | D166: 0.00 | E166: 21.00 | F166: 10.00 | G166: 0.00 | H166: 10.00 | I166: 0.00 | J166: 10.00 | K166: 0.00 | L166: 61.00 | M166: 6.10

Sheet раскл1-3
C1: Меню-раскладка к примерному 10-дневному меню
C2: для организации питания детей в дошкольных образовательных учреждениях
C3: от 1-3 лет
A5: День 1 - ый
A6: Прием пищи | C6: Выход блюда | D6: Кол - во | E6: Кол - во | F6: Пищевые вещества (г) | I6: Энергетическая | J6: № рецептуры
A7: Наименование блюд | D7: (в гр ) | E7: (в гр ) | I7: ценность
D8: брутто | E8: нетто | F8: белки | G8: жиры | H8: угл-ды | I8: Ккал
B9: ЗАВТРАК
A10: Каша манная молочная с маслом | C10: 150/3 | F10: 7.50 | G10: 7.50 | H10: 18.40 | I10: 171.10 | J10: ТТК №4
B11: Крупа манная | D11: 15.00 | E11: 15.00
B12: Молоко | D12: 75.00 | E12: 75.00
B13: Вода | D13: 57.00 | E13: 57.00
B14: Сахар | D14: 2.00 | E14: 2.00
B15: Соль | D15: 0.80 | E15: 0.80
B16: Масло сливочное | D16: 3.00 | E16: 3.00
A17: Чай с сахаром | C17: 160/4 | F17: 0.05 | G17: 0.01 | H17: 4.42 | I17: 18.00 | J17: № 411 Дели2016
B18: Заварка | D18: 0.2 | E18: 0.2
B19: сахар | D19: 4 | E19: 4
B20: Вода | D20: 160 | E20: 160
A21: Бутерброд с маслом сливочным | C21: 25/5 | F21: 1.9 | G21: 4.4 | H21: 13 | I21: 99 | J21: №1 Дели2010
B22: Батон нарезной | D22: 25 | E22: 25
B23: Масло сливочное | D23: 5 | E23: 5
A24: Итого: | C24: 347 | F24: =SUM(F9:F23) -> 9.45 | G24: =SUM(G9:G23) -> 11.91 | H24: =SUM(H9:H23) -> 35.82 | I24: =SUM(I9:I23) -> 288.10
A25: Сок | C25: 125 | D25: 125 | E25: 125 | F25: 0.60 | G25: 0.30 | H25: 13.00 | I25: 57.00 | J25: №418Дели2016
A26: персиковый
A27: Итого: | C27: 125 | F27: =SUM(F25) -> 0.60 | G27: =SUM(G25) -> 0.30 | H27: =SUM(H25) -> 13.00 | I27: =SUM(I25) -> 57.00
C28: 472 | F28: =F24+F27 -> 10.05 | G28: =G24+G27 -> 12.21 | H28: =H24+H27 -> 48.82 | I28: =I24+I27 -> 345.10
B29: ОБЕД
A30: Морковь отварная | C30: 30 | F30: 0.24 | G30: 0.03 | H30: 0.60 | I30: 3.60 | J30: стр 562 Сб общ пит1996
B31: Морковь | D31: 40.3 | E31: 30.3
A32: Суп вермишелевый с картофелем и курицей | C32: 150/10 | F32: 3.00 | G32: 4.32 | H32: 11.34 | I32: 99.00 | J32: №88 Дели 2016
B33: цыплята | D33: 22.61 | E33: 14.7
B34: Картофель | D34: 75.15 | E34: 45.0
B35: Морковь | D35: 8.0 | E35: 6.0
B36: Лук репчатый | D36: 7.1 | E36: 6.0
B37: Вермишель | D37: 6.0 | E37: 6.0
B38: Масло растительное | D38: 1.8 | E38: 1.8
B39: Соль | D39: 0.5 | E39: 0.5
B40: Вода | D40: 114.0 | E40: 114.0
A41: Тефтели из говядины | C41: 50 | F41: 3.87 | G41: 5 | H41: 3.13 | I41: 73 | J41: ТТК № 1152 от 09.10.2020
B42: фарш из говядины | D42: 34.3 | E42: 34.3
B43: Хлеб пшеничный 1с | D43: 4 | E43: 4
B44: Вода | D44: 4 | E44: 4
B45: Лук репчатый | D45: 10.2 | E45: 8.6
B46: Крупа манная | D46: 2 | E46: 2
B47: Соль | D47: 0.3 | E47: 0.3
B48: масса полуфабриката | E48: 53
B49: Масло растительное | D49: 1 | E49: 1
A50: Каша гречневая вязкая | C50: 110/2,5 | F50: 5.50 | G50: 5.00 | H50: 32.00 | I50: 195.00 | J50: №182,Дели 2016
B51: Крупа гречневая | D51: 27.50 | E51: 27.50
B52: Вода | D52: 91.30 | E52: 91.30
B53: Масло сливочное | D53: 2.50 | E53: 2.50
B54: Соль | D54: 0.40 | E54: 0.40
A55: Кисель | C55: 150 | H55: 8.34 | I55: 33.34 | J55: №284Партнер2014
B56: Кисель-концентрат | D56: 17.50 | E56: 17.50
B57: Сахар | D57: 4.00 | E57: 4.00
B58: вода | D58: 150.00 | E58: 150.00
A59: Хлеб сельский | C59: 30 | D59: 30 | E59: 30 | F59: 1.5 | G59: 0.3 | H59: 14.3 | I59: 66
A60: Итого: | C60: 532.50 | F60: =SUM(F30:F59) -> 14.11 | G60: =SUM(G30:G59) -> 14.65 | H60: =SUM(H30:H59) -> 69.71 | I60: =SUM(I30:I59) -> 469.94
B61: ПОЛДНИК
A62: Булочка Домашняя | C62: 40 | F62: 3.60 | G62: 4.00 | H62: 29.00 | I62: 167.00 | J62: №258 Партнер г. Уфа 2014
B63: Мука пшеничная | D63: 27.00 | E63: 27.00
B64: Сахар | D64: 5.60 | E64: 5.60
B65: вода | D65: 11.20 | E65: 11.20
B66: Масло растительное | D66: 5.60 | E66: 5.60
B67: Дрожжи сухие | D67: 0.16 | E67: 0.16
B68: Соль | D68: 0.20 | E68: 0.20
B69: Яйцо | D69: 0.80 | E69: 0.80
B70: Масса полуфабриката | E70: 48.40
B71: Масло растительное | D71: 0.10 | E71: 0.10
A72: Катык | C72: 100 | F72: 3.00 | G72: 2.50 | H72: 4.50 | I72: 54.30 | J72: №401Дели2010
B73: катык | D73: 103.5 | E73: 100
A74: Рагу с курицей | C74: 20/100 | F74: 4.50 | G74: 7.60 | H74: 13.00 | I74: 138.00 | J74: ТТК №63
B75: цыплята | D75: 43.08 | E75: 28.00
B76: Картофель | D76: 122.41 | E76: 73.30
B77: Морковь | D77: 12.40 | E77: 9.33
B78: Соль | D78: 0.40 | E78: 0.40
B79: вода | D79: 26.70 | E79: 26.70
B80: Масло растительное | D80: 3.00 | E80: 3.00
B81: Мука пшеничная | D81: 1.70 | E81: 1.70
B82: сахар | D82: 0.30 | E82: 0.30
A83: Напиток из урюка | C83: 150 | F83: 0.50 | G83: 0.03 | H83: 12.50 | I83: 52.10 | J83: ТТК №68
B84: урюк | D84: 12.75 | E84: 12.5
B85: Сахар | D85: 4 | E85: 4
B86: Вода | D86: 150 | E86: 150
A87: Хлеб пшеничный 1с | C87: 20 | D87: 20 | E87: 20 | F87: 1.6 | G87: 0.2 | H87: 9.8 | I87: 47
A88: Итого: | C88: 430.00 | F88: =SUM(F62:F87) -> 13.20 | G88: =SUM(G62:G87) -> 14.33 | H88: 68.80 | I88: 458.40
A89: ВСЕГО: | C89: =C24+C27+C60+C88 -> 1434.50 | F89: =F24+F27+F60+F88 -> 37.36 | G89: =G24+G27+G60+G88 -> 41.19 | H89: =H24+H27+H60+H88 -> 187.33 | I89: =I24+I27+I60+I88 -> 1273.44
A91: День 2- ой
A92: Прием пищи | C92: Выход блюда | D92: Кол - во | E92: Кол - во | F92: Пищевые вещества (г) | I92: Энергетическая | J92: № рецептуры
A93: Наименование блюд | D93: (в гр ) | E93: (в гр ) | I93: ценность
D94: брутто | E94: нетто | F94: белки | G94: жиры | H94: угл-ды | I94: Ккал
B95: ЗАВТРАК
A96: Каша "Дружба" молочная с маслом | C96: 150/3 | F96: 3.90 | G96: 4.35 | H96: 19.00 | I96: 131.00 | J96: ТТК №7
B97: Крупа рисовая | D97: 11 | E97: 11
B98: Крупа пшенная | D98: 8 | E98: 8
B99: Молоко | D99: 65 | E99: 65
B100: Вода | D100: 65 | E100: 65
B101: Сахар | D101: 0.75 | E101: 0.75
B102: Соль | D102: 0.5 | E102: 0.5
B103: Масло сливочное | D103: 3 | E103: 3
A104: Какао с молоком | C104: 160 | F104: 2.15 | G104: 2.29 | H104: 12.09 | I104: 65.16 | J104: №272 Парнер г. Уфа 2014
B105: Какао-порошок | D105: 1.3 | E105: 1.3
B106: Сахар | D106: 7 | E106: 7
B107: Молоко | D107: 80 | E107: 80
B108: вода | D108: 90 | E108: 90
A109: Бутерброд с сыром, маслом | C109: 25/5/3 | F109: 3.50 | G109: 5.95 | H109: 12.90 | I109: 119.60 | J109: №3Дели2010
B110: Батон нарезной | D110: 25 | E110: 25
B111: Сыр | D111: 5.1 | E111: 5
B112: Масло сливочное | D112: 3 | E112: 3
A113: Итого: | C113: 346 | F113: =SUM(F95:F112) -> 9.55 | G113: 12.33 | H113: =SUM(H95:H112) -> 43.99 | I113: =SUM(I95:I112) -> 315.76
A114: Фрукты свежие | C114: 85 | D114: 96.9 | E114: 85 | F114: 0.40 | G114: 0.34 | H114: 10.50 | I114: 47.00 | J114: № 386 Дели 2016
A115: апельсин
A116: Итого: | C116: 85 | F116: =SUM(F114) -> 0.40 | G116: =SUM(G114) -> 0.34 | H116: =SUM(H114) -> 10.50 | I116: =SUM(I114) -> 47.00
C117: 431 | F117: =F113+F116 -> 9.95 | G117: =G113+G116 -> 12.67 | H117: =H113+H116 -> 54.49 | I117: =I113+I116 -> 362.76
B118: ОБЕД
A119: Салат из свеклы | C119: 30 | F119: 0.36 | G119: 1.50 | H119: 2.52 | I119: 25.00 | J119: №34, Дели2016
B120: Свекла | D120: 38.76 | E120: 28.50
B121: Масло растительное | D121: 1.50 | E121: 1.50
A122: Суп из овощей с курицей, со сметаной | C122: 150/10/5 | F122: 3.00 | G122: 5.80 | H122: 14.70 | I122: 121.00 | J122: №64 "Партнер"2014
B123: цыплята | D123: 21.649 | E123: 14.7
B124: Капуста свежая | D124: 15.00 | E124: 12.00
B125: Картофель | D125: 50.10 | E125: 30.00
B126: Морковь | D126: 7.98 | E126: 6.00
B127: Лук репчатый | D127: 7.14 | E127: 6.00
B128: Масло растительное | D128: 2.00 | E128: 2.00
B129: Соль | D129: 0.50 | E129: 0.50
B130: Бульон или вода | D130: 114.00 | E130: 114.00
B131: Сметана | D131: 5.00 | E131: 5.00
A132: Соус мясной "Смак" | C132: 50 | F132: 7.21 | G132: 4.86 | H132: 12.14 | I132: 121.43 | J132: ТТК № 1523 от 28.07.2021
B133: Фарш из говядины | D133: 20.00 | E133: 20.00
B134: Морковь | D134: 6.20 | E134: 4.66
B135: Лук репчатый | D135: 7.93 | E135: 6.66
B136: Томат-паста | D136: 4.00 | E136: 4.00
B137: Масло растительное | D137: 1.00 | E137: 1.00
B138: Мука пшеничная | D138: 0.89 | E138: 0.89
B139: вода | D139: 30.00 | E139: 30.00
B140: Соль | D140: 0.34 | E140: 0.34
A141: Пюре Картофельное | C141: 110 | F141: 3.13 | G141: 3.76 | H141: 13.03 | I141: 131.15 | J141: №137 Партнер 2014
B142: Картофель | D142: 157.69 | E142: 94.43
B143: Молоко | D143: 17.38 | E143: 16.50
B144: Масло сливочное | D144: 3.00 | E144: 3.00
B145: Соль | D145: 0.90 | E145: 0.90
A146: Компот из свежих яблок | C146: 150 | F146: 0.10 | G146: 0.10 | H146: 10.20 | I146: 42.10 | J146: № 390 Дели 2016
B147: Яблоки | D147: 34 | E147: 30
B148: Сахар | D148: 4 | E148: 4
B149: Вода | D149: 130 | E149: 130
A150: Хлеб сельский | C150: 30 | D150: 30 | E150: 30 | F150: 1.5 | G150: 0.3 | H150: 14.3 | I150: 66
A151: Итого: | C151: 535.00 | F151: =SUM(F119:F150) -> 15.30 | G151: =SUM(G119:G150) -> 16.32 | H151: =SUM(H119:H150) -> 66.89 | I151: =SUM(I119:I150) -> 506.68
B152: ПОЛДНИК
A153: Кондитерские изделия | C153: 10 | F153: 2.20 | G153: 2.80 | H153: 20.50 | I153: 114.00
A154: печенье | B154: печенье | D154: 10.00 | E154: 10.00
A155: Молоко кипяченое | C155: 100 | F155: 2.30 | G155: 2.50 | H155: 3.60 | I155: 46.00 | J155: №419 Дели2016
B156: молоко | D156: 105.36 | E156: 100.00
A157: Суфле из творога с молоком сгущенным | C157: 100/10 | F157: 5.82 | G157: 8.10 | H157: 15.53 | I157: 158.00 | J157: ТТК №567
B158: Творог | D158: 72.85 | E158: 71.43
B159: Крупа манная | D159: 7.70 | E159: 7.70
B160: Яйцо | D160: 4.70 | E160: 4.70
B161: Сахар | D161: 7.70 | E161: 7.70
B162: Молоко | D162: 14.30 | E162: 14.30
B163: соль | D163: 0.10 | E163: 0.10
B164: Сметана | D164: 9.50 | E164: 9.50
B165: Масло растительное | D165: 0.40 | E165: 0.40
B166: молоко сгущенное | D166: 10.00 | E166: 10.00
A167: Чай с сахаром и лимоном | C167: 150/4/4 | F167: 0.09 | G167: 0.01 | H167: 8.50 | I167: 34.50 | J167: №393Дели2010
B168: Заварка | D168: 0.3 | E168: 0.3
B169: Сахар | D169: 4 | E169: 4
B170: лимон | D170: 4.1 | E170: 4
B171: Вода | D171: 150.0 | E171: 150.0
A172: Хлеб пшеничный 1с | C172: 20 | D172: 20 | E172: 20 | F172: 1.6 | G172: 0.2 | H172: 9.8 | I172: 47
A173: Итого: | C173: 398 | F173: =SUM(F153:F172) -> 12.01 | G173: =SUM(G153:G172) -> 13.61 | H173: =SUM(H153:H172) -> 57.93 | I173: =SUM(I153:I172) -> 399.50
A174: ВСЕГО: | C174: =C113+C116+C151+C173 -> 1364.00 | F174: =F113+F116+F151+F173 -> 37.26 | G174: =G113+G116+G151+G173 -> 42.60 | H174: =H113+H116+H151+H173 -> 179.31 | I174: =I113+I116+I151+I173 -> 1268.94
A176: День 3 - ий
A177: Прием пищи | C177: Выход блюда | D177: Кол - во | E177: Кол - во | F177: Пищевые вещества (г) | I177: Энергетическая | J177: № рецептуры
A178: Наименование блюд | D178: (в гр ) | E178: (в гр ) | I178: ценность
D179: брутто | E179: нетто | F179: белки | G179: жиры | H179: угл-ды | I179: Ккал
B180: ЗАВТРАК
A181: Каша геркулесовая молочная с маслом | C181: 150/3 | F181: 5.00 | G181: 5.63 | H181: 16.50 | I181: 136.50 | J181: ТТК №5
B182: Крупа геркулесовая | D182: 19 | E182: 19
B183: Молоко | D183: 75.00 | E183: 75.00
B184: Сахар | D184: 2.00 | E184: 2.00
B185: Вода | D185: 57.00 | E185: 57.00
B186: Соль | D186: 0.8 | E186: 0.8
B187: Масло сливочное | D187: 3 | E187: 3
A188: Чай с молоком,сахаром | C188: 160/4 | F188: 2.30 | G188: 2.00 | H188: 11.90 | I188: 74.80 | J188: №394Дели2010
B189: Заварка | D189: 0.2 | E189: 0.2
B190: Сахар | D190: 4 | E190: 4
B191: Молоко | D191: 42 | E191: 42
B192: Вода | D192: 115 | E192: 115
A193: Бутерброд с маслом сливочным | C193: 25/5 | F193: 1.9 | G193: 4.4 | H193: 13 | I193: 99 | J193: №1 Дели2010
B194: Батон нарезной | D194: 25 | E194: 25
B195: Масло сливочное | D195: 5 | E195: 5
A196: Итого: | C196: 347 | F196: =SUM(F180:F195) -> 9.20 | G196: =SUM(G180:G195) -> 12.03 | H196: =SUM(H180:H195) -> 41.40 | I196: =SUM(I180:I195) -> 310.30
A197: Сок | C197: 125 | D197: 125 | E197: 125 | F197: 0.80 | G197: 0.20 | H197: 7.00 | I197: 33.00 | J197: №418Дели2016
A198: персиковый
A199: Итого: | C199: =SUM(C197:C197) -> 125 | F199: =SUM(F197) -> 0.80 | G199: =SUM(G197) -> 0.20 | H199: =SUM(H197) -> 7.00 | I199: =SUM(I197) -> 33.00
C200: 472 | F200: =F196+F199 -> 10.00 | G200: =G196+G199 -> 12.23 | H200: =H196+H199 -> 48.40 | I200: =I196+I199 -> 343.30
B201: ОБЕД
A202: Огурцы свежие порционно | C202: 30 | F202: 0.21 | G202: 0.03 | H202: 0.57 | I202: 3.39 | J202: стр563,сб1996
B203: огурцы свежие | D203: 30.60 | E203: 30.00
... 687 more rows

Sheet свод 3-7
B1: Расход продуктов ДОУ
D2: от 3 до 7 лет | K2: НЕТТО
A3: Наименов. прод. | B3: 1 | C3: 2 | D3: 3 | E3: 4 | F3: 5 | G3: 6 | H3: 7 | I3: 8 | J3: 9 | K3: 10 | L3: Кол-во израсходованных продуктов за 10 дней
A5: Сахар | B5: 25.58 | C5: 30.40 | D5: 23.70 | E5: 28.00 | F5: 23.30 | G5: 24.00 | H5: 28.00 | I5: 19.21 | J5: 30.40 | K5: 20.83 | L5: 253.42
A6: Заварка | B6: 0.30 | C6: 0.35 | D6: 0.30 | E6: 0.30 | F6: 0.35 | G6: 0.30 | H6: 0.35 | I6: 0.30 | J6: 0.30 | K6: 0.35 | L6: 3.20
A7: Яйцо | B7: 1.00 | C7: 7.14 | D7: 49.50 | E7: 7.80 | F7: 0.00 | G7: 8.50 | H7: 7.80 | I7: 2.50 | J7: 7.14 | K7: 106.40 | L7: 197.78
A8: Дрожжи сухие | B8: 0.20 | C8: 0.00 | D8: 0.30 | E8: 0.00 | F8: 0.00 | G8: 0.38 | H8: 0.00 | I8: 0.20 | J8: 0.00 | K8: 0.20 | L8: 1.28
A9: Батон нарезной | B9: 25.00 | C9: 25.00 | D9: 25.00 | E9: 25.00 | F9: 25.00 | G9: 25.00 | H9: 25.00 | I9: 25.00 | J9: 25.00 | K9: 25.00 | L9: 250.00
A10: Хлеб пшеничный 1с | B10: 26.00 | C10: 20.00 | D10: 33.00 | E10: 20.00 | F10: 20.00 | G10: 20.00 | H10: 32.00 | I10: 20.00 | J10: 26.00 | K10: 20.00 | L10: 237.00
A11: Хлеб сельский | B11: 37.50 | C11: 37.50 | D11: 37.50 | E11: 37.50 | F11: 37.50 | G11: 37.50 | H11: 37.50 | I11: 37.50 | J11: 37.50 | K11: 37.50 | L11: 375.00
A12: Мука пшеничная | B12: 36.40 | C12: 1.25 | D12: 34.06 | E12: 0.00 | F12: 1.40 | G12: 30.00 | H12: 1.30 | I12: 26.10 | J12: 0.00 | K12: 24.70 | L12: 155.21
A13: Кисель-концентрат | B13: 21.60 | C13: 0.00 | D13: 0.00 | E13: 21.60 | F13: 0.00 | G13: 21.60 | H13: 0.00 | I13: 0.00 | J13: 21.60 | K13: 0.00 | L13: 86.40
A14: Макаронные изделия | B14: 0.00 | C14: 0.00 | D14: 45.50 | E14: 0.00 | F14: 0.00 | G14: 45.50 | H14: 0.00 | I14: 0.00 | J14: 0.00 | K14: 0.00 | L14: 91.00
A15: Вермишель | B15: 8.00 | C15: 0.00 | D15: 0.00 | E15: 0.00 | F15: 0.00 | G15: 0.00 | H15: 0.00 | I15: 15.55 | J15: 0.00 | K15: 0.00 | L15: 23.55
A16: Крупа рисовая | B16: 0.00 | C16: 15.00 | D16: 12.00 | E16: 18.00 | F16: 31.28 | G16: 0.00 | H16: 18.00 | I16: 45.60 | J16: 0.00 | K16: 37.70 | L16: 177.58
A17: Крупа кукурузная | B17: 0.00 | C17: 0.00 | D17: 0.00 | E17: 0.00 | F17: 0.00 | G17: 0.00 | H17: 0.00 | I17: 0.00 | J17: 0.00 | K17: 0.00 | L17: 0.00
A18: Крупа манная | B18: 23.00 | C18: 11.40 | D18: 0.00 | E18: 0.00 | F18: 0.00 | G18: 0.00 | H18: 0.00 | I18: 0.00 | J18: 11.40 | K18: 0.00 | L18: 45.80
A19: Горох | B19: 0.00 | C19: 0.00 | D19: 0.00 | E19: 0.00 | F19: 0.00 | G19: 0.00 | H19: 20.00 | I19: 0.00 | J19: 0.00 | K19: 0.00 | L19: 20.00
A20: Крупа пшенная | B20: 0.00 | C20: 11.00 | D20: 0.00 | E20: 30.00 | F20: 0.00 | G20: 0.00 | H20: 0.00 | I20: 0.00 | J20: 0.00 | K20: 30.00 | L20: 71.00
A21: Крупа ячневая | B21: 0.00 | C21: 0.00 | D21: 0.00 | E21: 0.00 | F21: 0.00 | G21: 0.00 | H21: 25.00 | I21: 0.00 | J21: 0.00 | K21: 0.00 | L21: 25.00
A22: Полба | B22: 0.00 | C22: 0.00 | D22: 0.00 | E22: 0.00 | F22: 25.00 | G22: 0.00 | H22: 0.00 | I22: 0.00 | J22: 25.00 | K22: 0.00 | L22: 50.00
A23: Крупа перловая | B23: 0.00 | C23: 0.00 | D23: 0.00 | E23: 0.00 | F23: 0.00 | G23: 8.00 | H23: 0.00 | I23: 0.00 | J23: 0.00 | K23: 0.00 | L23: 8.00
A24: Крупа геркулесовая | B24: 0.00 | C24: 0.00 | D24: 25.00 | E24: 0.00 | F24: 0.00 | G24: 25.00 | H24: 0.00 | I24: 0.00 | J24: 0.00 | K24: 0.00 | L24: 50.00
A25: Крупа пшеничная | B25: 0.00 | C25: 0.00 | D25: 0.00 | E25: 0.00 | F25: 0.00 | G25: 0.00 | H25: 0.00 | I25: 0.00 | J25: 0.00 | K25: 0.00 | L25: 0.00
A26: Крупа гречневая | B26: 32.50 | C26: 0.00 | D26: 0.00 | E26: 0.00 | F26: 0.00 | G26: 25.00 | H26: 0.00 | I26: 0.00 | J26: 12.00 | K26: 0.00 | L26: 69.50
A27: Картофель | B27: 148.00 | C27: 151.60 | D27: 60.00 | E27: 131.20 | F27: 34.50 | G27: 60.00 | H27: 183.00 | I27: 56.00 | J27: 171.60 | K27: 40.00 | L27: 1035.90
A28: Морковь | B28: 19.80 | C28: 14.53 | D28: 22.47 | E28: 29.74 | F28: 25.20 | G28: 37.28 | H28: 8.00 | I28: 45.40 | J28: 8.00 | K28: 46.74 | L28: 257.16
A29: Лук репчатый | B29: 20.19 | C29: 17.32 | D29: 20.30 | E29: 21.59 | F29: 24.28 | G29: 21.43 | H29: 18.30 | I29: 31.30 | J29: 20.00 | K29: 22.00 | L29: 216.71
A30: Свекла | B30: 0.00 | C30: 47.50 | D30: 0.00 | E30: 28.40 | F30: 51.00 | G30: 0.00 | H30: 47.50 | I30: 32.00 | J30: 0.00 | K30: 28.40 | L30: 234.80
A31: Капуста свежая | B31: 0.00 | C31: 16.00 | D31: 162.00 | E31: 40.00 | F31: 114.60 | G31: 0.00 | H31: 0.00 | I31: 45.30 | J31: 0.00 | K31: 16.00 | L31: 393.90
A32: Икра кабачковая | B32: 50.00 | C32: 0.00 | D32: 0.00 | E32: 0.00 | F32: 0.00 | G32: 50.00 | H32: 0.00 | I32: 0.00 | J32: 0.00 | K32: 0.00 | L32: 100.00
A33: Огурцы соленые | B33: 0.00 | C33: 0.00 | D33: 0.00 | E33: 0.00 | F33: 50.00 | G33: 12.00 | H33: 0.00 | I33: 0.00 | J33: 50.00 | K33: 0.00 | L33: 112.00
A34: Помидоры свежие | B34: 0.00 | C34: 0.00 | D34: 0.00 | E34: 0.00 | F34: 0.00 | G34: 0.00 | H34: 0.00 | I34: 0.00 | J34: 0.00 | K34: 0.00 | L34: 0.00
A35: Огурцы свежие | B35: 0.00 | C35: 0.00 | D35: 50.00 | E35: 0.00 | F35: 0.00 | G35: 0.00 | H35: 0.00 | I35: 48.00 | J35: 0.00 | K35: 0.00 | L35: 98.00
A36: перец | B36: 0.00 | C36: 0.00 | D36: 0.00 | E36: 0.00 | F36: 0.00 | G36: 0.00 | H36: 0.00 | I36: 0.00 | J36: 0.00 | K36: 0.00 | L36: 0.00
A37: Томат-паста | B37: 1.00 | C37: 5.60 | D37: 0.00 | E37: 0.00 | F37: 1.00 | G37: 0.00 | H37: 0.00 | I37: 1.00 | J37: 0.00 | K37: 3.00 | L37: 11.60
A38: Масло сливочное | B38: 11.00 | C38: 9.00 | D38: 22.10 | E38: 9.90 | F38: 13.00 | G38: 13.10 | H38: 15.90 | I38: 9.01 | J38: 13.60 | K38: 16.20 | L38: 132.81
A39: Масло растительное | B39: 16.20 | C39: 8.50 | D39: 3.00 | E39: 10.83 | F39: 9.20 | G39: 11.80 | H39: 5.50 | I39: 13.20 | J39: 3.60 | K39: 13.88 | L39: 95.71
A40: Фрукты свежие | B40: 0.00 | C40: 100.00 | D40: 0.00 | E40: 100.00 | F40: 0.00 | G40: 100.00 | H40: 0.00 | I40: 100.00 | J40: 0.00 | K40: 100.00 | L40: 500.00
A41: Яблоки | B41: 0.00 | C41: 36.00 | D41: 0.00 | E41: 0.00 | F41: 36.00 | G41: 0.00 | H41: 36.00 | I41: 0.00 | J41: 0.00 | K41: 0.00 | L41: 108.00
A42: крыжовник зам. | B42: 0.00 | C42: 0.00 | D42: 0.00 | E42: 0.00 | F42: 0.00 | G42: 0.00 | H42: 0.00 | I42: 0.00 | J42: 0.00 | K42: 0.00 | L42: 0.00
A43: Лимон | B43: 0.00 | C43: 5.00 | D43: 0.00 | E43: 0.00 | F43: 5.00 | G43: 0.00 | H43: 5.00 | I43: 0.00 | J43: 0.00 | K43: 5.00 | L43: 20.00
A44: Ягодная смесь зам. | B44: 0.00 | C44: 0.00 | D44: 0.00 | E44: 0.00 | F44: 0.00 | G44: 0.00 | H44: 0.00 | I44: 0.00 | J44: 0.00 | K44: 0.00 | L44: 0.00
A45: Сок | B45: 125.00 | C45: 0.00 | D45: 125.00 | E45: 0.00 | F45: 125.00 | G45: 0.00 | H45: 125.00 | I45: 0.00 | J45: 125.00 | K45: 0.00 | L45: 625.00
A46: Фруктовое пюре | B46: 0.00 | C46: 0.00 | D46: 0.00 | E46: 0.00 | F46: 0.00 | G46: 0.00 | H46: 0.00 | I46: 0.00 | J46: 0.00 | K46: 0.00 | L46: 0.00
A47: Сухофрукты | B47: 0.00 | C47: 0.00 | D47: 18.00 | E47: 0.00 | F47: 0.00 | G47: 0.00 | H47: 0.00 | I47: 0.00 | J47: 0.00 | K47: 18.00 | L47: 36.00
A48: Урюк | B48: 15.00 | C48: 0.00 | D48: 0.00 | E48: 0.00 | F48: 0.00 | G48: 15.00 | H48: 0.00 | I48: 15.00 | J48: 0.00 | K48: 0.00 | L48: 45.00
A49: повидло фруктовое | B49: 0.00 | C49: 0.00 | D49: 0.00 | E49: 20.00 | F49: 0.00 | G49: 0.00 | H49: 20.00 | I49: 20.00 | J49: 0.00 | K49: 0.00 | L49: 60.00
A50: Шиповник порошок | B50: 0.00 | C50: 0.00 | D50: 2.70 | E50: 0.00 | F50: 0.00 | G50: 0.00 | H50: 0.00 | I50: 2.70 | J50: 0.00 | K50: 0.00 | L50: 5.40
A51: Молоко | B51: 100.00 | C51: 326.90 | D51: 148.00 | E51: 178.00 | F51: 288.00 | G51: 152.50 | H51: 288.00 | I51: 151.11 | J51: 218.90 | K51: 328.00 | L51: 2179.41
A52: Кефир | B52: 0.00 | C52: 0.00 | D52: 0.00 | E52: 110.00 | F52: 0.00 | G52: 0.00 | H52: 0.00 | I52: 0.00 | J52: 110.00 | K52: 0.00 | L52: 220.00
A53: Ряженка | B53: 0.00 | C53: 0.00 | D53: 110.00 | E53: 0.00 | F53: 0.00 | G53: 110.00 | H53: 0.00 | I53: 0.00 | J53: 0.00 | K53: 0.00 | L53: 220.00
A54: Катык | B54: 110.00 | C54: 0.00 | D54: 0.00 | E54: 0.00 | F54: 0.00 | G54: 0.00 | H54: 0.00 | I54: 110.00 | J54: 0.00 | K54: 0.00 | L54: 220.00
A55: Молоко сгущенное | B55: 0.00 | C55: 20.00 | D55: 0.00 | E55: 0.00 | F55: 0.00 | G55: 0.00 | H55: 0.00 | I55: 0.00 | J55: 20.00 | K55: 0.00 | L55: 40.00
A56: Сметана | B56: 0.00 | C56: 20.28 | D56: 6.00 | E56: 8.90 | F56: 6.00 | G56: 5.00 | H56: 8.90 | I56: 5.00 | J56: 14.28 | K56: 16.29 | L56: 90.65
A57: Творог | B57: 0.00 | C57: 107.14 | D57: 0.00 | E57: 97.50 | F57: 0.00 | G57: 0.00 | H57: 97.50 | I57: 0.00 | J57: 107.14 | K57: 0.00 | L57: 409.28
A58: Говядина | B58: 0.00 | C58: 0.00 | D58: 0.00 | E58: 41.78 | F58: 0.00 | G58: 0.00 | H58: 0.00 | I58: 52.00 | J58: 0.00 | K58: 0.00 | L58: 93.78
A59: Фарш из говядины | B59: 48.00 | C59: 28.00 | D59: 17.10 | E59: 0.00 | F59: 53.00 | G59: 60.10 | H59: 58.00 | I59: 0.00 | J59: 52.00 | K59: 0.00 | L59: 316.20
A60: Цыплята | B60: 49.66 | C60: 14.67 | D60: 52.00 | E60: 0.00 | F60: 69.95 | G60: 55.00 | H60: 14.67 | I60: 39.42 | J60: 14.67 | K60: 0.00 | L60: 310.04
A61: индейка филе | B61: 0.00 | C61: 0.00 | D61: 0.00 | E61: 0.00 | F61: 0.00 | G61: 0.00 | H61: 0.00 | I61: 0.00 | J61: 0.00 | K61: 0.00 | L61: 0.00
A62: куриная грудка | B62: 0.00 | C62: 0.00 | D62: 0.00 | E62: 0.00 | F62: 0.00 | G62: 0.00 | H62: 0.00 | I62: 0.00 | J62: 0.00 | K62: 64.00 | L62: 64.00
A63: Сыр | B63: 0.00 | C63: 7.00 | D63: 0.00 | E63: 7.00 | F63: 0.00 | G63: 7.00 | H63: 0.00 | I63: 7.00 | J63: 0.00 | K63: 24.70 | L63: 52.70
A64: рыба фарш | B64: 0.00 | C64: 0.00 | D64: 0.00 | E64: 0.00 | F64: 0.00 | G64: 0.00 | H64: 0.00 | I64: 0.00 | J64: 0.00 | K64: 0.00 | L64: 0.00
A65: Кофейный напиток | B65: 0.00 | C65: 0.00 | D65: 0.00 | E65: 1.50 | F65: 0.00 | G65: 0.00 | H65: 1.50 | I65: 0.00 | J65: 0.00 | K65: 1.50 | L65: 4.50
A66: Какао-порошок | B66: 0.00 | C66: 1.50 | D66: 0.00 | E66: 0.00 | F66: 1.50 | G66: 0.00 | H66: 0.00 | I66: 0.00 | J66: 1.50 | K66: 0.00 | L66: 4.50
A67: печенье КП | B67: 0.00 | C67: 0.00 | D67: 0.00 | E67: 0.00 | F67: 0.00 | G67: 0.00 | H67: 0.00 | I67: 0.00 | J67: 0.00 | K67: 0.00 | L67: 0.00
A68: крекер | B68: 0.00 | C68: 0.00 | D68: 0.00 | E68: 0.00 | F68: 10.00 | G68: 0.00 | H68: 0.00 | I68: 0.00 | J68: 10.00 | K68: 0.00 | L68: 20.00
A69: Соль | B69: 4.40 | C69: 3.77 | D69: 4.70 | E69: 3.53 | F69: 3.10 | G69: 4.40 | H69: 4.00 | I69: 6.11 | J69: 3.80 | K69: 4.50 | L69: 42.31
A70: печенье | B70: 0.00 | C70: 10.00 | D70: 0.00 | E70: 0.00 | F70: 0.00 | G70: 0.00 | H70: 10.00 | I70: 0.00 | J70: 0.00 | K70: 0.00 | L70: 20.00
A71: Сухари панировочные | B71: 0.00 | C71: 0.00 | D71: 7.00 | E71: 0.00 | F71: 0.00 | G71: 6.00 | H71: 2.00 | I71: 0.00 | J71: 0.00 | K71: 0.00 | L71: 15.00
A72: вафли | B72: 0.00 | C72: 0.00 | D72: 0.00 | E72: 21.00 | F72: 0.00 | G72: 0.00 | H72: 0.00 | I72: 0.00 | J72: 0.00 | K72: 0.00 | L72: 21.00
A73: Крупы, бобовые | B73: 55.50 | C73: 37.40 | D73: 37.00 | E73: 48.00 | F73: 56.28 | G73: 58.00 | H73: 63.00 | I73: 45.60 | J73: 48.40 | K73: 67.70 | L73: 516.88
A74: Овощи разные | B74: 90.99 | C74: 100.95 | D74: 254.77 | E74: 119.73 | F74: 266.08 | G74: 120.71 | H74: 73.80 | I74: 203.00 | J74: 78.00 | K74: 116.14 | L74: 1424.17
A75: Фрукты | B75: 0.00 | C75: 141.00 | D75: 0.00 | E75: 120.00 | F75: 41.00 | G75: 100.00 | H75: 61.00 | I75: 120.00 | J75: 0.00 | K75: 105.00 | L75: 688.00
A76: Фрукты сухие | B76: 15.00 | C76: 0.00 | D76: 20.70 | E76: 0.00 | F76: 0.00 | G76: 15.00 | H76: 0.00 | I76: 17.70 | J76: 0.00 | K76: 18.00 | L76: 86.40
A77: Молочные прод. | B77: 210.00 | C77: 346.90 | D77: 258.00 | E77: 288.00 | F77: 288.00 | G77: 262.50 | H77: 288.00 | I77: 261.11 | J77: 348.90 | K77: 328.00 | L77: 2879.41
A78: Говядина | B78: 48.00 | C78: 28.00 | D78: 17.10 | E78: 41.78 | F78: 53.00 | G78: 60.10 | H78: 58.00 | I78: 52.00 | J78: 52.00 | K78: 0.00 | L78: 409.98
A79: Птица | B79: 49.66 | C79: 14.67 | D79: 52.00 | E79: 0.00 | F79: 69.95 | G79: 55.00 | H79: 14.67 | I79: 39.42 | J79: 14.67 | K79: 64.00 | L79: 374.04
A80: Макаронные изделия | B80: 8.00 | C80: 0.00 | D80: 45.50 | E80: 0.00 | F80: 0.00 | G80: 45.50 | H80: 0.00 | I80: 15.55 | J80: 0.00 | K80: 0.00 | L80: 114.55
A81: Хлеб пшеничный | B81: 51.00 | C81: 45.00 | D81: 65.00 | E81: 45.00 | F81: 45.00 | G81: 51.00 | H81: 59.00 | I81: 45.00 | J81: 51.00 | K81: 45.00 | L81: 502.00
A82: Кондитерские изделия | B82: 0.00 | C82: 10.00 | D82: 0.00 | E82: 21.00 | F82: 10.00 | G82: 0.00 | H82: 10.00 | I82: 0.00 | J82: 10.00 | K82: 0.00 | L82: 61.00
A83: витаминизированные напитки
A84: Примечание: расход хлеба пшеничного с учетом расхода сухарей панировочных
B85: Расход продуктов ДОУ
D86: от 3 до 7 лет | K86: брутто
A88: Наименов. прод. | B88: 1 | C88: 2 | D88: 3 | E88: 4 | F88: 5 | G88: 6 | H88: 7 | I88: 8 | J88: 9 | K88: 10 | L88: Кол-во
A90: Сахар | B90: 25.58 | C90: 30.40 | D90: 23.70 | E90: 28.00 | F90: 23.30 | G90: 24.00 | H90: 28.00 | I90: 19.21 | J90: 30.40 | K90: 20.83 | L90: 253.42
A91: Заварка | B91: 0.30 | C91: 0.35 | D91: 0.30 | E91: 0.30 | F91: 0.35 | G91: 0.30 | H91: 0.35 | I91: 0.30 | J91: 0.30 | K91: 0.35 | L91: 3.20
A92: Яйцо | B92: 1.00 | C92: 7.14 | D92: 49.50 | E92: 7.80 | F92: 0.00 | G92: 8.50 | H92: 7.80 | I92: 2.50 | J92: 7.14 | K92: 106.40 | L92: 197.78
A93: Дрожжи сухие | B93: 0.20 | C93: 0.00 | D93: 0.30 | E93: 0.00 | F93: 0.00 | G93: 0.38 | H93: 0.00 | I93: 0.20 | J93: 0.00 | K93: 0.20 | L93: 1.28
A94: Батон нарезной | B94: 25.00 | C94: 25.00 | D94: 25.00 | E94: 25.00 | F94: 25.00 | G94: 25.00 | H94: 25.00 | I94: 25.00 | J94: 25.00 | K94: 25.00 | L94: 250.00
A95: Хлеб пшеничный 1с | B95: 26.00 | C95: 20.00 | D95: 33.00 | E95: 20.00 | F95: 20.00 | G95: 20.00 | H95: 34.40 | I95: 20.00 | J95: 26.00 | K95: 20.00 | L95: 239.40
A96: Хлеб сельский | B96: 37.50 | C96: 37.50 | D96: 37.50 | E96: 37.50 | F96: 37.50 | G96: 37.50 | H96: 37.50 | I96: 37.50 | J96: 37.50 | K96: 37.50 | L96: 375.00
A97: Мука пшеничная | B97: 36.40 | C97: 1.25 | D97: 34.06 | E97: 0.00 | F97: 1.40 | G97: 30.00 | H97: 1.30 | I97: 26.10 | J97: 0.00 | K97: 24.70 | L97: 155.21
A98: Кисель-концентрат | B98: 21.60 | C98: 0.00 | D98: 0.00 | E98: 21.60 | F98: 0.00 | G98: 21.60 | H98: 0.00 | I98: 0.00 | J98: 21.60 | K98: 0.00 | L98: 86.40
A99: Макаронные изделия | B99: 0.00 | C99: 0.00 | D99: 45.50 | E99: 0.00 | F99: 0.00 | G99: 45.50 | H99: 0.00 | I99: 0.00 | J99: 0.00 | K99: 0.00 | L99: 91.00
A100: Вермишель | B100: 8.00 | C100: 0.00 | D100: 0.00 | E100: 0.00 | F100: 0.00 | G100: 0.00 | H100: 0.00 | I100: 15.55 | J100: 0.00 | K100: 0.00 | L100: 23.55
A101: Крупа рисовая | B101: 0.00 | C101: 15.00 | D101: 12.00 | E101: 18.00 | F101: 31.28 | G101: 0.00 | H101: 18.00 | I101: 45.60 | J101: 0.00 | K101: 37.70 | L101: 177.58
A102: Крупа кукурузная | B102: 0.00 | C102: 0.00 | D102: 0.00 | E102: 0.00 | F102: 0.00 | G102: 0.00 | H102: 0.00 | I102: 0.00 | J102: 0.00 | K102: 0.00 | L102: 0.00
A103: Крупа манная | B103: 23.00 | C103: 11.40 | D103: 0.00 | E103: 0.00 | F103: 0.00 | G103: 0.00 | H103: 0.00 | I103: 0.00 | J103: 11.40 | K103: 0.00 | L103: 45.80
A104: Горох | B104: 0.00 | C104: 0.00 | D104: 0.00 | E104: 0.00 | F104: 0.00 | G104: 0.00 | H104: 20.20 | I104: 0.00 | J104: 0.00 | K104: 0.00 | L104: 20.20
A105: Крупа пшенная | B105: 0.00 | C105: 11.00 | D105: 0.00 | E105: 30.00 | F105: 0.00 | G105: 0.00 | H105: 0.00 | I105: 0.00 | J105: 0.00 | K105: 30.00 | L105: 71.00
A106: Крупа ячневая | B106: 0.00 | C106: 0.00 | D106: 0.00 | E106: 0.00 | F106: 0.00 | G106: 0.00 | H106: 25.00 | I106: 0.00 | J106: 0.00 | K106: 0.00 | L106: 25.00
A107: Полба | B107: 0.00 | C107: 0.00 | D107: 0.00 | E107: 0.00 | F107: 25.00 | G107: 0.00 | H107: 0.00 | I107: 0.00 | J107: 25.00 | K107: 0.00 | L107: 50.00
A108: Крупа перловая | B108: 0.00 | C108: 0.00 | D108: 0.00 | E108: 0.00 | F108: 0.00 | G108: 8.00 | H108: 0.00 | I108: 0.00 | J108: 0.00 | K108: 0.00 | L108: 8.00
A109: Крупа геркулесовая | B109: 0.00 | C109: 0.00 | D109: 25.00 | E109: 0.00 | F109: 0.00 | G109: 25.00 | H109: 0.00 | I109: 0.00 | J109: 0.00 | K109: 0.00 | L109: 50.00
A110: Крупа пшеничная | B110: 0.00 | C110: 0.00 | D110: 0.00 | E110: 0.00 | F110: 0.00 | G110: 0.00 | H110: 0.00 | I110: 0.00 | J110: 0.00 | K110: 0.00 | L110: 0.00
A111: Крупа гречневая | B111: 32.50 | C111: 0.00 | D111: 0.00 | E111: 0.00 | F111: 0.00 | G111: 25.00 | H111: 0.00 | I111: 0.00 | J111: 12.00 | K111: 0.00 | L111: 69.50
A112: Картофель | B112: 247.16 | C112: 253.17 | D112: 100.20 | E112: 219.10 | F112: 57.62 | G112: 100.20 | H112: 271.80 | I112: 93.52 | J112: 286.57 | K112: 66.80 | L112: 1696.14
A113: Морковь | B113: 26.32 | C113: 19.33 | D113: 29.88 | E113: 39.55 | F113: 33.13 | G113: 49.57 | H113: 10.64 | I113: 60.38 | J113: 10.64 | K113: 62.16 | L113: 341.59
A114: Лук репчатый | B114: 24.04 | C114: 20.62 | D114: 24.17 | E114: 25.70 | F114: 28.90 | G114: 25.51 | H114: 21.78 | I114: 37.25 | J114: 23.80 | K114: 26.20 | L114: 257.97
A115: Свекла | B115: 0.00 | C115: 64.60 | D115: 0.00 | E115: 38.62 | F115: 69.36 | G115: 0.00 | H115: 64.60 | I115: 43.52 | J115: 0.00 | K115: 38.62 | L115: 319.32
A116: Капуста свежая | B116: 0.00 | C116: 20.00 | D116: 202.50 | E116: 50.00 | F116: 143.25 | G116: 0.00 | H116: 0.00 | I116: 56.60 | J116: 0.00 | K116: 20.00 | L116: 492.35
A117: Икра кабачковая | B117: 52.50 | C117: 0.00 | D117: 0.00 | E117: 0.00 | F117: 0.00 | G117: 52.50 | H117: 0.00 | I117: 0.00 | J117: 0.00 | K117: 0.00 | L117: 105.00
A118: Огурцы соленые | B118: 0.00 | C118: 0.00 | D118: 0.00 | E118: 0.00 | F118: 91.00 | G118: 21.84 | H118: 0.00 | I118: 0.00 | J118: 91.00 | K118: 0.00 | L118: 203.84
A119: Помидоры свежие | B119: 0.00 | C119: 0.00 | D119: 0.00 | E119: 0.00 | F119: 0.00 | G119: 0.00 | H119: 0.00 | I119: 0.00 | J119: 0.00 | K119: 0.00 | L119: 0.00
A120: Огурцы свежие | B120: 0.00 | C120: 0.00 | D120: 51.00 | E120: 0.00 | F120: 0.00 | G120: 0.00 | H120: 0.00 | I120: 48.96 | J120: 0.00 | K120: 0.00 | L120: 99.96
A121: Соус Переменка | B121: 0.00 | C121: 0.00 | D121: 0.00 | E121: 0.00 | F121: 0.00 | G121: 0.00 | H121: 0.00 | I121: 0.00 | J121: 0.00 | K121: 0.00 | L121: 0.00
A122: Томат-паста | B122: 1.00 | C122: 5.60 | D122: 0.00 | E122: 0.00 | F122: 1.00 | G122: 0.00 | H122: 0.00 | I122: 1.00 | J122: 0.00 | K122: 3.00 | L122: 11.60
A123: Масло сливочное | B123: 11.00 | C123: 9.00 | D123: 22.10 | E123: 9.90 | F123: 13.00 | G123: 13.10 | H123: 15.90 | I123: 9.01 | J123: 13.60 | K123: 16.20 | L123: 132.81
A124: Масло растительное | B124: 16.20 | C124: 8.50 | D124: 3.00 | E124: 10.83 | F124: 9.20 | G124: 11.80 | H124: 5.50 | I124: 13.20 | J124: 3.60 | K124: 13.88 | L124: 95.71
A125: Фрукты свежие | B125: 0.00 | C125: 114.00 | D125: 0.00 | E125: 114.00 | F125: 0.00 | G125: 114.00 | H125: 0.00 | I125: 114.00 | J125: 0.00 | K125: 114.00 | L125: 570.00
A126: Яблоки | B126: 0.00 | C126: 40.80 | D126: 0.00 | E126: 0.00 | F126: 40.80 | G126: 0.00 | H126: 40.80 | I126: 0.00 | J126: 0.00 | K126: 0.00 | L126: 122.40
A127: крыжовник зам. | B127: 0.00 | C127: 0.00 | D127: 0.00 | E127: 0.00 | F127: 0.00 | G127: 0.00 | H127: 0.00 | I127: 0.00 | J127: 0.00 | K127: 0.00 | L127: 0.00
A128: Лимон | B128: 0.00 | C128: 5.10 | D128: 0.00 | E128: 0.00 | F128: 5.10 | G128: 0.00 | H128: 5.10 | I128: 0.00 | J128: 0.00 | K128: 5.10 | L128: 20.40
A129: Ягодная смесь зам. | B129: 0.00 | C129: 0.00 | D129: 0.00 | E129: 0.00 | F129: 0.00 | G129: 0.00 | H129: 0.00 | I129: 0.00 | J129: 0.00 | K129: 0.00 | L129: 0.00
A130: Сок | B130: 125.00 | C130: 0.00 | D130: 125.00 | E130: 0.00 | F130: 125.00 | G130: 0.00 | H130: 125.00 | I130: 0.00 | J130: 125.00 | K130: 0.00 | L130: 625.00
A131: Фруктовое пюре | B131: 0.00 | C131: 0.00 | D131: 0.00 | E131: 0.00 | F131: 0.00 | G131: 0.00 | H131: 0.00 | I131: 0.00 | J131: 0.00 | K131: 0.00 | L131: 0.00
A132: Сухофрукты | B132: 0.00 | C132: 0.00 | D132: 18.36 | E132: 0.00 | F132: 0.00 | G132: 0.00 | H132: 0.00 | I132: 0.00 | J132: 0.00 | K132: 18.36 | L132: 36.72
A133: Урюк | B133: 15.30 | C133: 0.00 | D133: 0.00 | E133: 0.00 | F133: 0.00 | G133: 15.30 | H133: 0.00 | I133: 15.30 | J133: 0.00 | K133: 0.00 | L133: 45.90
A134: повидло фруктовое | B134: 0.00 | C134: 0.00 | D134: 0.00 | E134: 20.00 | F134: 0.00 | G134: 0.00 | H134: 20.00 | I134: 20.00 | J134: 0.00 | K134: 0.00 | L134: 60.00
A135: Шиповник порошок | B135: 0.00 | C135: 0.00 | D135: 2.70 | E135: 0.00 | F135: 0.00 | G135: 0.00 | H135: 0.00 | I135: 2.70 | J135: 0.00 | K135: 0.00 | L135: 5.40
A136: Молоко | B136: 100.00 | C136: 333.77 | D136: 148.00 | E136: 178.00 | F136: 293.90 | G136: 152.50 | H136: 293.90 | I136: 151.11 | J136: 219.87 | K136: 333.90 | L136: 2204.95
A137: Кефир | B137: 0.00 | C137: 0.00 | D137: 0.00 | E137: 114.00 | F137: 0.00 | G137: 0.00 | H137: 0.00 | I137: 0.00 | J137: 114.00 | K137: 0.00 | L137: 228.00
A138: Ряженка | B138: 0.00 | C138: 0.00 | D138: 114.00 | E138: 0.00 | F138: 0.00 | G138: 114.00 | H138: 0.00 | I138: 0.00 | J138: 0.00 | K138: 0.00 | L138: 228.00
A139: Катык | B139: 114.00 | C139: 0.00 | D139: 0.00 | E139: 0.00 | F139: 0.00 | G139: 0.00 | H139: 0.00 | I139: 114.00 | J139: 0.00 | K139: 0.00 | L139: 228.00
A140: Молоко сгущенное | B140: 0.00 | C140: 20.00 | D140: 0.00 | E140: 0.00 | F140: 0.00 | G140: 0.00 | H140: 0.00 | I140: 0.00 | J140: 20.00 | K140: 0.00 | L140: 40.00
A141: Сметана | B141: 0.00 | C141: 20.28 | D141: 6.00 | E141: 8.90 | F141: 6.00 | G141: 5.00 | H141: 8.90 | I141: 5.00 | J141: 14.28 | K141: 16.38 | L141: 90.74
A142: Творог | B142: 0.00 | C142: 109.28 | D142: 0.00 | E142: 98.80 | F142: 0.00 | G142: 0.00 | H142: 98.80 | I142: 0.00 | J142: 109.28 | K142: 0.00 | L142: 416.16
A143: Говядина | B143: 0.00 | C143: 0.00 | D143: 0.00 | E143: 41.78 | F143: 0.00 | G143: 0.00 | H143: 0.00 | I143: 52.00 | J143: 0.00 | K143: 0.00 | L143: 93.78
A144: Фарш из говядины | B144: 48.00 | C144: 28.00 | D144: 17.10 | E144: 0.00 | F144: 53.00 | G144: 60.10 | H144: 58.00 | I144: 0.00 | J144: 52.00 | K144: 0.00 | L144: 316.20
A145: Цыплята | B145: 76.45 | C145: 22.61 | D145: 80.00 | E145: 0.00 | F145: 107.61 | G145: 84.61 | H145: 22.61 | I145: 60.65 | J145: 22.61 | K145: 0.00 | L145: 477.15
A146: индейка филе | B146: 0.00 | C146: 0.00 | D146: 0.00 | E146: 0.00 | F146: 0.00 | G146: 0.00 | H146: 0.00 | I146: 0.00 | J146: 0.00 | K146: 0.00 | L146: 0.00
A147: куриная грудка | B147: 0.00 | C147: 0.00 | D147: 0.00 | E147: 0.00 | F147: 0.00 | G147: 0.00 | H147: 0.00 | I147: 0.00 | J147: 0.00 | K147: 85.33 | L147: 85.33
A148: Сыр | B148: 0.00 | C148: 7.14 | D148: 0.00 | E148: 7.14 | F148: 0.00 | G148: 7.14 | H148: 0.00 | I148: 7.14 | J148: 0.00 | K148: 25.14 | L148: 53.70
A149: рыба фарш | B149: 0.00 | C149: 0.00 | D149: 0.00 | E149: 0.00 | F149: 0.00 | G149: 0.00 | H149: 0.00 | I149: 0.00 | J149: 0.00 | K149: 0.00 | L149: 0.00
A150: Кофейный напиток | B150: 0.00 | C150: 0.00 | D150: 0.00 | E150: 1.50 | F150: 0.00 | G150: 0.00 | H150: 1.50 | I150: 0.00 | J150: 0.00 | K150: 1.50 | L150: 4.50
A151: Какао-порошок | B151: 0.00 | C151: 1.50 | D151: 0.00 | E151: 0.00 | F151: 1.50 | G151: 0.00 | H151: 0.00 | I151: 0.00 | J151: 1.50 | K151: 0.00 | L151: 4.50
A152: печенье | B152: 0.00 | C152: 10.00 | D152: 0.00 | E152: 0.00 | F152: 0.00 | G152: 0.00 | H152: 10.00 | I152: 0.00 | J152: 0.00 | K152: 0.00 | L152: 20.00
A153: крекер | B153: 0.00 | C153: 0.00 | D153: 0.00 | E153: 0.00 | F153: 10.00 | G153: 0.00 | H153: 0.00 | I153: 0.00 | J153: 10.00 | K153: 0.00 | L153: 20.00
A154: Соль | B154: 4.40 | C154: 3.77 | D154: 4.70 | E154: 3.53 | F154: 3.10 | G154: 4.40 | H154: 4.00 | I154: 6.11 | J154: 3.80 | K154: 4.50 | L154: 42.31
A155: печенье КП | B155: 0.00 | C155: 0.00 | D155: 0.00 | E155: 0.00 | F155: 0.00 | G155: 0.00 | H155: 0.00 | I155: 0.00 | J155: 0.00 | K155: 0.00 | L155: 0.00
A156: Сухари панировочные | B156: 0.00 | C156: 0.00 | D156: 7.00 | E156: 0.00 | F156: 0.00 | G156: 6.00 | H156: 2.00 | I156: 0.00 | J156: 0.00 | K156: 0.00 | L156: 15.00
A157: вафли | B157: 0.00 | C157: 0.00 | D157: 0.00 | E157: 21.00 | F157: 0.00 | G157: 0.00 | H157: 0.00 | I157: 0.00 | J157: 0.00 | K157: 0.00 | L157: 21.00
A158: Крупы, бобовые | B158: 55.50 | C158: 37.40 | D158: 37.00 | E158: 48.00 | F158: 56.28 | G158: 58.00 | H158: 63.20 | I158: 45.60 | J158: 48.40 | K158: 67.70 | L158: 517.08
A159: Овощи разные | B159: 103.86 | C159: 130.15 | D159: 307.55 | E159: 153.87 | F159: 366.64 | G159: 149.42 | H159: 97.02 | I159: 247.71 | J159: 125.44 | K159: 149.98 | L159: 1831.63
A160: Фрукты | B160: 0.00 | C160: 159.90 | D160: 0.00 | E160: 114.00 | F160: 45.90 | G160: 114.00 | H160: 45.90 | I160: 114.00 | J160: 0.00 | K160: 119.10 | L160: 712.80
A161: Фрукты сухие | B161: 15.30 | C161: 0.00 | D161: 18.36 | E161: 20.00 | F161: 0.00 | G161: 15.30 | H161: 20.00 | I161: 35.30 | J161: 0.00 | K161: 18.36 | L161: 142.62
A162: Молочные прод. | B162: 214.00 | C162: 353.77 | D162: 262.00 | E162: 292.00 | F162: 293.90 | G162: 266.50 | H162: 293.90 | I162: 265.11 | J162: 353.87 | K162: 333.90 | L162: 2928.95
A163: птица | B163: 76.45 | C163: 22.61 | D163: 80.00 | E163: 0.00 | F163: 107.61 | G163: 84.61 | H163: 22.61 | I163: 60.65 | J163: 22.61 | K163: 85.33 | L163: 562.48
A164: Говядина | B164: 48.00 | C164: 28.00 | D164: 17.10 | E164: 41.78 | F164: 53.00 | G164: 60.10 | H164: 58.00 | I164: 52.00 | J164: 52.00 | K164: 0.00 | L164: 409.98
A165: Макаронные изделия | B165: 8.00 | C165: 0.00 | D165: 45.50 | E165: 0.00 | F165: 0.00 | G165: 45.50 | H165: 0.00 | I165: 15.55 | J165: 0.00 | K165: 0.00 | L165: 114.55
A166: Хлеб пшеничный | B166: 51.00 | C166: 45.00 | D166: 65.00 | E166: 45.00 | F166: 45.00 | G166: 51.00 | H166: 61.40 | I166: 45.00 | J166: 51.00 | K166: 45.00 | L166: 504.40
A167: Кондитерские изделия | B167: 0.00 | C167: 10.00 | D167: 0.00 | E167: 21.00 | F167: 10.00 | G167: 0.00 | H167: 10.00 | I167: 0.00 | J167: 10.00 | K167: 0.00 | L167: 61.00

Sheet 3-7 лет Послед
A1: "Согласовано" | E1: "Утверждаю"
A2: ________________________ | E2: Заместитель генерального директора по организации питания АО "Департамент продовольствия и социального питания г. Казани"
A3: __________________________ | E3: __________________А.К. Агапова
E4: Апрель 2025г
C5: Примерное 10-дневное меню
C6: для организации питания детей в дошкольных образовательных учреждениях
C7: от 3-7 лет с 7-12 часовым пребыванием
B8: 1 неделя
A9: День 1 - ый
A10: Прием пищи | C10: Выход блюда | D10: Пищевые вещества (г) | G10: Энергетическая | H10: № рецептуры
A11: Наименование блюд | G11: ценность
D12: белки | E12: жиры | F12: угл-ды | G12: Ккал
B13: ЗАВТРАК
A14: Каша манная молочная с маслом | C14: 200/3 | D14: 10.00 | E14: 10.00 | F14: 24.50 | G14: 228.00 | H14: ТТК №4
A15: Чай с сахаром | C15: 180/5 | D15: 0.06 | E15: 0.02 | F15: 4.99 | G15: 20.00 | H15: № 411 Дели2016
A16: Бутерброд с маслом сливочным | C16: 25/5 | D16: 1.90 | E16: 4.40 | F16: 13.00 | G16: 99.00 | H16: №1 Дели2010
A17: Итого: | C17: 418 | D17: =SUM(D13:D16) -> 11.96 | E17: =SUM(E13:E16) -> 14.42 | F17: =SUM(F13:F16) -> 42.49 | G17: =SUM(G13:G16) -> 347.00
A18: Сок | C18: 125 | D18: 0.90 | E18: 0.08 | F18: 21.00 | G18: 84.00 | H18: №418Дели2016
A19: абрикосовый
A20: Итого: | C20: =SUM(C18:C18) -> 125 | D20: =SUM(D18) -> 0.90 | E20: =SUM(E18) -> 0.08 | F20: =SUM(F18) -> 21.00 | G20: =SUM(G18) -> 84.00
C21: 543 | D21: =D17+D20 -> 12.86 | E21: =E17+E20 -> 14.50 | F21: =F17+F20 -> 63.49 | G21: =G17+G20 -> 431.00
B22: ОБЕД
A23: Икра кабачковая | C23: 50 | D23: 0.95 | E23: 3.02 | F23: 7.90 | G23: 63.00 | H23: № 57 Дели 2016
A24: Суп вермишелевый с картофелем и курицей | C24: 200/10 | D24: 3.86 | E24: 5.80 | F24: 15.24 | G24: 133.00 | H24: №88 Дели 2016
A25: Тефтели из говядины с соусом томатным | C25: 70/10 | D25: 6.2 | E25: 6.5 | F25: 5 | G25: 103 | H25: ТТК № 1152 от 09.10.2020 и №364 С-Петербург 2008
A26: Каша гречневая вязкая | C26: 130/3 | D26: 6.20 | E26: 5.80 | F26: 38.00 | G26: 229.00 | H26: №182,Дели 2016
A27: Кисель | C27: 180 | F27: 10.00 | G27: 40.00 | H27: №284Партнер2014
A28: Хлеб сельский | C28: 37.5 | D28: 1.8 | E28: 0.4 | F28: 18 | G28: 82.5
A29: Итого: | C29: 690.5 | D29: =SUM(D22:D28) -> 19.01 | E29: =SUM(E22:E28) -> 21.52 | F29: =SUM(F22:F28) -> 94.14 | G29: =SUM(G22:G28) -> 650.50
B30: ПОЛДНИК
A31: Булочка Домашняя | C31: 50 | D31: 4.90 | E31: 5.00 | F31: 38.00 | G31: 217.00 | H31: №258 Партнер г. Уфа 2014
A32: Катык | C32: 110 | D32: 3.77 | E32: 2.75 | F32: 5 | G32: 62.1 | H32: №401Дели2010
A33: Рагу с курицей | C33: 120/25 | D33: 6.00 | E33: 9.50 | F33: 16.90 | G33: 177.00 | H33: ТТК №63
A34: Напиток из урюка | C34: 180 | D34: 0.6 | E34: 0.1 | F34: 15.0 | G34: 63 | H34: ТТК №68
A35: Хлеб пшеничный 1с | C35: 20 | D35: 1.52 | E35: 0.16 | F35: 9.84 | G35: 47.00
A36: Итого: | C36: 505 | D36: =SUM(D31:D35) -> 16.79 | E36: =SUM(E31:E35) -> 17.47 | F36: =SUM(F31:F35) -> 84.74 | G36: =SUM(G31:G35) -> 565.60
A37: ВСЕГО: | C37: =C17+C20+C29+C36 -> 1738.5 | D37: =D17+D20+D29+D36 -> 48.66 | E37: =E17+E20+E29+E36 -> 53.49 | F37: =F17+F20+F29+F36 -> 242.37 | G37: =G17+G20+G29+G36 -> 1647.10
A38: День 2- ой
A39: Прием пищи | C39: Выход блюда | D39: Пищевые вещества (г) | G39: Энергетическая | H39: № рецептуры
A40: Наименование блюд | G40: ценность
D41: белки | E41: жиры | F41: угл-ды | G41: Ккал
B42: ЗАВТРАК
A43: Каша "Дружба" молочная с маслом | C43: 200/3 | D43: 5.20 | E43: 5.80 | F43: 25.20 | G43: 173.80 | H43: ТТК №7
A44: Какао с молоком | C44: 180 | D44: 2.42 | E44: 2.58 | F44: 13.61 | G44: 87.30 | H44: №272 Парнер г. Уфа 2014
A45: Бутерброд с сыром, маслом | C45: 25/7/3 | D45: 4.00 | E45: 6.00 | F45: 12.83 | G45: 122.00 | H45: №3 Дели2010
A46: Итого: | C46: 418 | D46: =SUM(D42:D45) -> 11.62 | E46: =SUM(E42:E45) -> 14.38 | F46: =SUM(F42:F45) -> 51.64 | G46: =SUM(G42:G45) -> 383.10
A47: Фрукты свежие | C47: 100 | D47: 1.20 | E47: 0.34 | F47: 10.50 | G47: 49.00 | H47: № 368 Дели 2010
A48: апельсин
A49: Итого: | C49: 100 | D49: =SUM(D47) -> 1.20 | E49: =SUM(E47) -> 0.34 | F49: =SUM(F47) -> 10.50 | G49: =SUM(G47) -> 49.00
C50: 518 | D50: =D46+D49 -> 12.82 | E50: =E46+E49 -> 14.72 | F50: =F46+F49 -> 62.14 | G50: =G46+G49 -> 432.10
B51: ОБЕД
A52: Салат из свеклы | C52: 50 | D52: 0.60 | E52: 2.50 | F52: 4.20 | G52: 42.00 | H52: №34, Дели2016
A53: Суп из овощей с курицей, со сметаной | C53: 200/10/6 | D53: 3.50 | E53: 7.80 | F53: 19.70 | G53: 163.00 | H53: №64 "Партнер"2014
A54: Соус мясной "Смак" | C54: 70 | D54: 10.10 | E54: 6.80 | F54: 17.00 | G54: 170.00 | H54: ТТК № 1523 от 28.07.2021
A55: Пюре Картофельное | C55: 130 | D55: 3.70 | E55: 4.44 | F55: 25.00 | G55: 155.00 | H55: №137 Партнер 2014
A56: Компот из свежих яблок | C56: 180 | D56: 0.10 | E56: 0.10 | F56: 11.80 | G56: 49.00 | H56: № 390 Дели 2016
A57: Хлеб сельский | C57: 37.5 | D57: 1.8 | E57: 0.4 | F57: 18 | G57: 82.5
A58: Итого: | C58: 683.5 | D58: =SUM(D52:D57) -> 19.80 | E58: =SUM(E52:E57) -> 22.04 | F58: =SUM(F52:F57) -> 95.70 | G58: =SUM(G52:G57) -> 661.50
B59: ПОЛДНИК
A60: Кондитерские изделия | C60: 10 | D60: 3.86 | E60: 3.38 | F60: 32.00 | G60: 168.00
A61: печенье
A62: Молоко кипяченое | C62: 110 | D62: 2.50 | E62: 2.75 | F62: 4.00 | G62: 51.00 | H62: №419 Дели2016
A63: Суфле из творога с молоком сгущенным | C63: 150/20 | D63: 9.00 | E63: 12.50 | F63: 24.00 | G63: 245.00 | H63: ТТК №567
A64: Чай с сахаром и лимоном | C64: 180/5/5 | D64: 0.12 | E64: 0.01 | F64: 10.20 | G64: 41.00 | H64: №393Дели2010
A65: Хлеб пшеничный 1с | C65: 20 | D65: 1.52 | E65: 0.16 | F65: 9.84 | G65: 47.00
A66: Итого: | C66: 500 | D66: =SUM(D59:D65) -> 17.00 | E66: =SUM(E59:E65) -> 18.80 | F66: =SUM(F59:F65) -> 80.04 | G66: =SUM(G59:G65) -> 552.00
A67: ВСЕГО: | C67: =C46+C49+C58+C66 -> 1701.5 | D67: =D46+D49+D58+D66 -> 49.62 | E67: =E46+E49+E58+E66 -> 55.56 | F67: =F46+F49+F58+F66 -> 237.88 | G67: =G46+G49+G58+G66 -> 1645.60
A68: День 3 - ий
A69: Прием пищи | C69: Выход блюда | D69: Пищевые вещества (г) | G69: Энергетическая | H69: № рецептуры
A70: Наименование блюд | G70: ценность
D71: белки | E71: жиры | F71: угл-ды | G71: Ккал
B72: ЗАВТРАК
A73: Каша Геркулесовая молочная с маслом | C73: 200/3 | D73: 6.70 | E73: 7.50 | F73: 22.00 | G73: 182.30 | H73: ТТК №5
A74: Чай с молоком,сахаром | C74: 180/5 | D74: 2.60 | E74: 2.30 | F74: 14.30 | G74: 89.00 | H74: № 394 Дели2010
A75: Бутерброд с маслом сливочным | C75: 25/5 | D75: 1.91 | E75: 4.35 | F75: 12.89 | G75: 99.00 | H75: №1 Дели2010
A76: Итого: | C76: 418 | D76: =SUM(D73:D75) -> 11.21 | E76: =SUM(E73:E75) -> 14.15 | F76: =SUM(F73:F75) -> 49.19 | G76: =SUM(G73:G75) -> 370.30
A77: Сок | C77: 125 | D77: 1.63 | E77: 0.10 | F77: 15.00 | G77: 67.00 | H77: №418Дели2016
A78: яблочно-абрикосовый
A79: Итого: | C79: =SUM(C77) -> 125 | D79: =SUM(D77) -> 1.63 | E79: =SUM(E77) -> 0.10 | F79: =SUM(F77) -> 15.00 | G79: =SUM(G77) -> 67.00
C80: 543 | D80: =D76+D79 -> 12.84 | E80: =E76+E79 -> 14.25 | F80: =F76+F79 -> 64.19 | G80: =G76+G79 -> 437.30
B81: ОБЕД
A82: Огурцы свежие порционно | C82: 50 | D82: 0.35 | E82: 0.05 | F82: 0.95 | G82: 6.00 | H82: стр563,сб1996
A83: Суп с рисовой крупой и картофелем с мясными фрикадельками | C83: 200/15 | D83: 5.50 | E83: 5.20 | F83: 16.20 | G83: 134.00 | H83: №86 Дели 2016
A84: Котлеты рубленые из птицы | C84: 70 | D84: 6.20 | E84: 10.80 | F84: 3.00 | G84: 134.00 | H84: № 205,справ.М2003
A85: Макароны отварные | C85: 130 | D85: 4.80 | E85: 3.60 | F85: 29.40 | G85: 169.00 | H85: №218 Дели 2016
A86: Компот из сухофруктов | C86: 180 | D86: 0.18 | E86: 0.1 | F86: 25.9 | G86: 89 | H86: №394, Дели 2016
A87: Хлеб сельский | C87: 37.5 | D87: 1.8 | E87: 0.4 | F87: 18 | G87: 82.5
A88: Итого: | C88: 682.5 | D88: =SUM(D82:D87) -> 18.83 | E88: =SUM(E82:E87) -> 20.14 | F88: 95.90 | G88: =SUM(G82:G87) -> 614.50
B89: ПОЛДНИК
A90: Ряженка | C90: 110 | D90: 3.19 | E90: 2.75 | F90: 4.62 | G90: 59.00 | H90: №401 Дели2010
A91: Булочка Дорожная | C91: 50 | D91: 3.55 | E91: 5.91 | F91: 30.10 | G91: 188.00 | H91: №453 Дели 2016
A92: Яйцо вареное | C92: 48 | D92: 5.10 | E92: 4.60 | F92: 0.30 | G92: 63.00 | H92: №227 Дели 2016
A93: Капуста тушеная (в сметанном соусе) | C93: 130 | D93: 3.25 | E93: 5.3 | F93: 25.3 | G93: 162 | H93: ТТК№53Д
A94: Напиток шиповника | C94: 180/5 | D94: 0.6 | E94: 0.3 | F94: 6.5 | G94: 31 | H94: ТТК № 59
A95: Хлеб пшеничный 1с | C95: 20 | D95: 1.52 | E95: 0.16 | F95: 9.84 | G95: 47.00
A96: Итого: | C96: 543 | D96: =SUM(D90:D95) -> 17.21 | E96: =SUM(E90:E95) -> 19.02 | F96: =SUM(F90:F95) -> 76.66 | G96: =SUM(G90:G95) -> 550.00
A97: ВСЕГО: | C97: =C76+C79+C88+C96 -> 1768.5 | D97: =D76+D79+D88+D96 -> 48.88 | E97: =E76+E79+E88+E96 -> 53.41 | F97: =F76+F79+F88+F96 -> 236.75 | G97: =G76+G79+G88+G96 -> 1601.80
A98: День 4 - ый
A99: Прием пищи | C99: Выход блюда | D99: Пищевые вещества (г) | G99: Энергетическая | H99: № рецептуры
A100: Наименование блюд | G100: ценность
D101: белки | E101: жиры | F101: угл-ды | G101: Ккал
B102: ЗАВТРАК
A103: Каша пшенная молочная с маслом | C103: 200/3 | D103: 8.00 | E103: 6.60 | F103: 26.00 | G103: 195.40 | H103: ТТК №6
A104: Кофейный напиток с молоком | C104: 180 | D104: 1.22 | E104: 1.34 | F104: 11.94 | G104: 65.00 | H104: №270 Партнер г. Уфа 2014
A105: Бутерброд с сыром, маслом | C105: 25/7/3 | D105: 4.00 | E105: 6.00 | F105: 12.83 | G105: 122.00 | H105: №3 Дели2010
A106: Итого: | C106: 418 | D106: =SUM(D102:D105) -> 13.22 | E106: =SUM(E102:E105) -> 13.94 | F106: =SUM(F102:F105) -> 50.77 | G106: =SUM(G102:G105) -> 382.40
A107: Фрукты свежие | C107: 100 | D107: 0.40 | E107: 0.40 | F107: 12.00 | G107: 53.20 | H107: № 386 Дели 2016
A108: яблоко
A109: Итого: | C109: =SUM(C107) -> 100 | D109: =SUM(D107) -> 0.40 | E109: =SUM(E107) -> 0.40 | F109: 12.00 | G109: 53.20
C110: 518 | D110: =D106+D109 -> 13.62 | E110: =E106+E109 -> 14.34 | F110: =F106+F109 -> 62.77 | G110: =G106+G109 -> 435.60
B111: ОБЕД
A112: Салат из свеклы и моркови | C112: 50 | D112: 1.30 | E112: 2.50 | F112: 6.00 | G112: 51.00 | H112: ТТК №60
A113: Щи со свежей капустой, картофелем, на м/б и сметаной | C113: 200/5 | D113: 4.60 | E113: 8.00 | F113: 23.80 | G113: 186.00 | H113: №73 Дели 2016
A114: Жаркое по-домашнему из отварной говядины | C114: 160 | D114: 10.9 | E114: 11.1 | F114: 33.58 | G114: 278 | H114: ТТК №29 Д
A115: Кисель | C115: 180 | F115: 10.00 | G115: 40.00 | H115: №284Партнер2014
A116: Хлеб сельский | C116: 37.5 | D116: 1.8 | E116: 0.4 | F116: 18 | G116: 82.5
A117: Итого: | C117: 632.5 | D117: =SUM(D112:D116) -> 18.60 | E117: =SUM(E112:E116) -> 22.00 | F117: =SUM(F112:F116) -> 91.38 | G117: =SUM(G112:G116) -> 637.50
B118: ПОЛДНИК
A119: Кондитерские изделия | C119: 21 | D119: 2.20 | E119: 5.50 | F119: 26.30 | G119: 158.00
A120: вафли
A121: Кефир | C121: 110 | D121: 3.68 | E121: 2.75 | F121: 5.07 | G121: 68.00 | H121: №401 Дели2010
A123: Пудинг из творога с рисом с повидлом | C123: 130/20 | D123: 9.00 | E123: 10.40 | F123: 28.30 | G123: 242.00 | H123: № 250 Дели 2016
A125: Чай с сахаром | C125: 180/5 | D125: 0.06 | E125: 0.02 | F125: 4.99 | G125: 20.00 | H125: № 411 Дели2016
A126: Хлеб пшеничный 1с | C126: 20 | D126: 1.52 | E126: 0.16 | F126: 9.84 | G126: 47.00
A127: Итого: | C127: 486 | D127: =SUM(D118:D126) -> 16.46 | E127: =SUM(E118:E126) -> 18.83 | F127: =SUM(F118:F126) -> 74.50 | G127: =SUM(G118:G126) -> 535.00
A128: ВСЕГО: | C128: =C106+C109+C117+C127 -> 1636.5 | D128: =D106+D109+D117+D127 -> 48.68 | E128: =E106+E109+E117+E127 -> 55.17 | F128: =F106+F109+F117+F127 -> 228.65 | G128: =G106+G109+G117+G127 -> 1608.10
A129: День 5 - ый
A130: Прием пищи | C130: Выход блюда | D130: Пищевые вещества (г) | G130: Энергетическая | H130: № рецептуры
A131: Наименование блюд | G131: ценность
D132: белки | E132: жиры | F132: угл-ды | G132: Ккал
B133: ЗАВТРАК
A134: Каша полбяная молочная с маслом | C134: 200/3 | D134: 7.30 | E134: 7.42 | F134: 22.80 | G134: 187.20 | H134: ТТК №1
A135: Какао с молоком | C135: 180 | D135: 2.42 | E135: 2.58 | F135: 13.61 | G135: 87.30 | H135: №272 Парнер г. Уфа 2014
A136: Бутерброд с маслом сливочным | C136: 25/5 | D136: 1.91 | E136: 4.35 | F136: 12.89 | G136: 99.00 | H136: №1 Дели2010
A137: Итого: | C137: 413 | D137: =SUM(D133:D136) -> 11.63 | E137: =SUM(E133:E136) -> 14.35 | F137: =SUM(F133:F136) -> 49.30 | G137: =SUM(G133:G136) -> 373.50
A138: Сок | C138: 125 | D138: 1.20 | E138: 0.06 | F138: 17.50 | G138: 75.00 | H138: №418Дели2016
A139: вишневый
A140: Итого: | C140: =SUM(C138) -> 125 | D140: =SUM(D138:D139) -> 1.20 | E140: =SUM(E138:E139) -> 0.06 | F140: 17.50 | G140: 75.00
C141: 538 | D141: =D137+D140 -> 12.83 | E141: =E137+E140 -> 14.41 | F141: 66.80 | G141: 448.50
B142: ОБЕД
A143: Огурцы соленые | C143: 50 | D143: 0.40 | E143: 0.05 | F143: 0.85 | G143: 5.50 | H143: стр563,сб1996
A144: Свекольник с курицей , со сметаной | C144: 200/10/6 | D144: 3.80 | E144: 5.40 | F144: 18.60 | G144: 138.00 | H144: №35,сб Пермь2001
A145: Капуста тушеная с мясом | C145: 150 | D145: 12.30 | E145: 14.60 | F145: 38.20 | G145: 333.40 | H145: №54-10М Сборник рецептур Москва
A146: Компот из свежих яблок | C146: 180 | D146: 0.10 | E146: 0.10 | F146: 11.80 | G146: 49.00 | H146: № 390 Дели 2016
A147: Хлеб сельский | C147: 37.5 | D147: 1.8 | E147: 0.4 | F147: 18 | G147: 82.5
A148: Итого: | C148: 633.5 | D148: =SUM(D143:D147) -> 18.40 | E148: =SUM(E143:E147) -> 20.55 | F148: =SUM(F143:F147) -> 87.45 | G148: =SUM(G143:G147) -> 608.40
B149: ПОЛДНИК
A150: Кондитерские изделия | C150: 10 | D150: 3.00 | E150: 3.60 | F150: 20.00 | G150: 150.00
A151: крекер
A152: Молоко кипяченое | C152: 110 | D152: 2.50 | E152: 2.75 | F152: 4.00 | G152: 51.00 | H152: №419 Дели2016
A153: Плов из курицы | C153: 130 | D153: 9 | E153: 10.7 | F153: 30.6 | G153: 253 | H153: №321 Дели 2016
A154: Чай с сахаром и лимоном | C154: 180/5/5 | D154: 0.12 | E154: 0.01 | F154: 10.20 | G154: 41.00 | H154: №393Дели2010
A155: Хлеб пшеничный 1с | C155: 20 | D155: 1.52 | E155: 0.16 | F155: 9.84 | G155: 47.00
A156: Итого: | C156: 460 | D156: =SUM(D150:D155) -> 16.14 | E156: =SUM(E150:E155) -> 17.22 | F156: =SUM(F150:F155) -> 74.64 | G156: =SUM(G150:G155) -> 542.00
A157: ВСЕГО: | C157: =C137+C140+C148+C156 -> 1631.5 | D157: =D137+D140+D148+D156 -> 47.37 | E157: =E137+E140+E148+E156 -> 52.18 | F157: =F137+F140+F148+F156 -> 228.89 | G157: =G137+G140+G148+G156 -> 1598.90
C158: 2 неделя
A159: День 6 - ой
A160: Прием пищи | C160: Выход блюда | D160: Пищевые вещества (г) | G160: Энергетическая | H160: № рецептуры
A161: Наименование блюд | G161: ценность
D162: белки | E162: жиры | F162: угл-ды | G162: Ккал
B163: ЗАВТРАК
A164: Каша Геркулесовая молочная с маслом | C164: 200/3 | D164: 6.70 | E164: 7.50 | F164: 22.00 | G164: 182.30 | H164: ТТК №5
A165: Чай с молоком,сахаром | C165: 180/5 | D165: 2.60 | E165: 2.30 | F165: 14.30 | G165: 89.00 | H165: № 394 Дели2010
A166: Бутерброд с сыром, маслом | C166: 25/7/3 | D166: 4.00 | E166: 6.00 | F166: 12.83 | G166: 122.00 | H166: №3 Дели2010
A167: Итого: | C167: 423 | D167: =SUM(D164:D166) -> 13.30 | E167: =SUM(E164:E166) -> 15.80 | F167: =SUM(F164:F166) -> 49.13 | G167: =SUM(G164:G166) -> 393.30
A168: Фрукты свежие | C168: 100 | D168: 0.40 | E168: 0.40 | F168: 12.00 | G168: 53.20 | H168: № 386 Дели 2016
A169: яблоко
A170: Итого: | C170: 85 | D170: =SUM(D168:D169) -> 0.40 | E170: =SUM(E168:E169) -> 0.40 | F170: =SUM(F168:F169) -> 12.00 | G170: =SUM(G168:G169) -> 53.20
C171: 523 | D171: =D167+D170 -> 13.70 | E171: 15.40 | F171: =F167+F170 -> 61.13 | G171: =G167+G170 -> 446.50
B172: ОБЕД
A173: Икра кабачковая | C173: 50 | D173: 0.95 | E173: 3.02 | F173: 7.90 | G173: 63.00 | H173: № 57 Дели 2016
A174: Рассольник ленинградский с мясными фрикадельками, со сметаной | C174: 200/15/5 | D174: 3.56 | E174: 4.50 | F174: 23.60 | G174: 149.00 | H174: №82 Дели 2016
A175: Биточки куриные "Солнышко" | C175: 70 | D175: 8.00 | E175: 10.50 | F175: 6.20 | G175: 152.00 | H175: ТТК №97Д
A176: Макароны отварные | C176: 130 | D176: 4.80 | E176: 3.60 | F176: 29.40 | G176: 169.00 | H176: №218 Дели 2016
A177: Кисель | C177: 180 | F177: 10.00 | G177: 40.00 | H177: №284Партнер2014
A178: Хлеб сельский | C178: 37.5 | D178: 1.8 | E178: 0.4 | F178: 18 | G178: 82.5
A179: Итого: | C179: 687.5 | D179: =SUM(D173:D178) -> 19.11 | E179: =SUM(E173:E178) -> 22.02 | F179: =SUM(F173:F178) -> 95.10 | G179: =SUM(G173:G178) -> 655.50
B180: ПОЛДНИК
A181: Булочка сдобная | C181: 50 | D181: 3.8 | E181: 4.8 | F181: 22.3 | G181: 148 | H181: №257 Партнер2014 г. Уфа
A182: Ряженка | C182: 110 | D182: 3.19 | E182: 2.75 | F182: 4.62 | G182: 59.00 | H182: №401 Дели2010
A183: Гречка с фаршем и овощами | C183: 130 | D183: 7.30 | E183: 10.00 | F183: 33.20 | G183: 252.00 | H183: ТТК №1630 от 10.11.2021
A184: Напиток из урюка | C184: 180 | D184: 0.6 | E184: 0.1 | F184: 15.0 | G184: 63 | H184: ТТК №68
A185: Хлеб пшеничный 1с | C185: 20 | D185: 1.52 | E185: 0.16 | F185: 9.84 | G185: 47.00
A186: Итого: | C186: 490 | D186: =SUM(D181:D185) -> 16.41 | E186: =SUM(E181:E185) -> 17.77 | F186: =SUM(F181:F185) -> 84.96 | G186: =SUM(G181:G185) -> 568.50
A187: ВСЕГО: | C187: =C167+C170+C179+C186 -> 1685.5 | D187: =D167+D170+D179+D186 -> 49.22 | E187: =E167+E170+E179+E186 -> 55.99 | F187: =F167+F170+F179+F186 -> 241.19 | G187: =G167+G170+G179+G186 -> 1670.50
A188: День 7 - ой
A189: Прием пищи | C189: Выход блюда | D189: Пищевые вещества (г) | G189: Энергетическая | H189: № рецептуры
A190: Наименование блюд | G190: ценность
D191: белки | E191: жиры | F191: угл-ды | G191: Ккал
B192: ЗАВТРАК
A193: Каша ячневая молочная с маслом | C193: 200/3 | D193: 9.50 | E193: 8.80 | F193: 20.10 | G193: 198.00 | H193: ТТК №8
A194: Кофейный напиток с молоком | C194: 180 | D194: 1.22 | E194: 1.34 | F194: 11.94 | G194: 65.00 | H194: №270 Партнер г. Уфа 2014
A195: Бутерброд с маслом сливочным | C195: 25/5 | D195: 1.91 | E195: 4.35 | F195: 12.89 | G195: 99.00 | H195: №1 Дели2010
A196: Итого: | C196: 413 | D196: =SUM(D193:D195) -> 12.63 | E196: =SUM(E193:E195) -> 14.49 | F196: =SUM(F193:F195) -> 44.93 | G196: =SUM(G193:G195) -> 362.00
A197: Сок | C197: 125 | D197: 0.60 | E197: 0.06 | F197: 22.00 | G197: 91.00 | H197: №418Дели2016
A198: персик-банан
A199: Итого: | C199: =SUM(C197) -> 125 | D199: =SUM(D197:D198) -> 0.60 | E199: =SUM(E197:E198) -> 0.06 | F199: =SUM(F197:F198) -> 22.00 | G199: =SUM(G197:G198) -> 91.00
C200: 538 | D200: =D196+D199 -> 13.23 | E200: =E196+E199 -> 14.55 | F200: 66.93 | G200: 453.00
B201: ОБЕД
A202: Салат из свеклы | C202: 50 | D202: 0.60 | E202: 2.50 | F202: 4.20 | G202: 42.00 | H202: №34, Дели2016
... 129 more rows
